{"text_format":"2","workbook":"xlsx","n_sheets":1,"sheets":["Sheet0"],"not_rendered":{"charts":0,"images":0,"macros":0,"external_links":0,"defined_names":0,"comments":0,"pivot_tables":0},"unopened":[],"bounds":{"document_bytes":16777216,"sheet_cells":100000,"run_cost":"one","rows_first":2000,"rows_last":500,"rows_between":2000,"halvings":0,"cell_chars":16384,"cell_head_chars":4096},"cells_cut":0,"cells_raw":0,"read":"whole","date_system":"1900"}

{"sheet":"Sheet0","index":0,"n_rows":92,"n_cols":122,"rows_kept":92,"cut":false,"hidden":false,"merged":[]}
["Arb.oppgave","Sortering","Beskrivelse","Sted","AO-nr.","Status","FDV-ID","Timer Totalt","Ressursgruppe(r)","Ressurs-ID(er)","Status siste endret","Sted for vedlikeholdsorganisasjon","Vedl.org.","Gruppe","Prioritet","Rapportert koblingstype","Rapportert objektsted","Rapportert objekt","Faktisk tilkoblingstype","Faktisk objektsted","Faktisk objekt","Serienummer","Arbeidstype","Arbeidsstatus","Lang beskrivelse","Entreprenør","Leverandørkoordinator","Avhengigheter","Overstyrende kostnadskode","Tidligste start","Seneste ferdigstilling","Varighet","Seneste start","Planlagt start","Planlagt ferdig","Faktisk start","Faktisk ferdigdato","Fast start","Seneste SLA-startdato","Seneste SLA-ferdigdato","Dato svart","Løsningsdato","Tillat flere besøk","Ekskluder fra planlegging","Elementklasse","Elementklassekilde","Testpunkt-ID","Funksjon","Feiltype","Symptom-ID","Årsak","Sviktende komponent","Driftsstatus","Driftsstatustype","Leverandør","Leverandørgaranti","Kundegaranti","Faktisk objekt har kundegaranti","Faktisk objekt har leverandørgaranti","Kontakt","E-post","Telefonnr.","Kunde","Saksbehandler","Ordretype","Valutakode","Leveringsadresse","Kontrakts-ID","Linjenr.","SLA-ordrenummer","SLA-ordrelinjenummer","Kundeordrenr","Referansenr.","På vent","Overført til mobil","Prosjekt koblet","Tilbud tilknyttet","Dokumenttekst","Aktive tildelinger finnes","Utkvitteringskrav finnes","Utkvittering utført","Prisgodkjenning kreves","Sluttkontert","Klasse-ID","Oppdagelses-ID","Utført tiltak ID","Fremdrift (%)","Kanselleringsårsak","Årsaksdetaljer","Bemerkning","Intern merknad","Tiltak utført","Utført arbeid","Planleggingsstatus","Vedlikeholdsplanleggingsstyre siste oppdatering","Planlegging inne i ett vedl.vindu.","Planleggingshinder","Kritisk arbeid","Rapportert av","Rapportert dato","Opprettet av","Opprettelsesdato","Planlagt av","Mobiloppgave-ID","Jobb-ID","Jobbeskrivelse","Opprinnelig tilkobling","Opprinnelig sted","Kilde-ID","Kilderef. 1","Kilderef. 2","Kilderef. 3","Kilderef. 4","FV gruppe","Inspeksjonsinfo","Generer info","Objekt Verifisert","Utført på APP","Opprettet på APP","Åpen IO","Sist utført","Utført av"]
[781986,10,"1 månedskontroll","KB - Kristiansund lufth",314964,"Fullført","+DU996=910.472",1,"117;ZCFT-10","KBSOL","Aasen, Jan Erik (KBJEA)","KB - Kristiansund lufth","KB200 - Kristiansund Drift"," - ","3 - Til planlegging (<14d)","UTSTYR","CA - Hovedadministrasjon","AVIRAMP-AR361","UTSTYR","CA - Hovedadministrasjon","AVIRAMP-AR361","AR361","02 - Forebyggende vedlikehold"," - ","Månedlig kontroll Utføres i henhold til standard jobb sjekkliste"," - ",null,null," - ","2021-04-22T07:00:00","2021-04-28T17:00:00",1,null,null,null,"2021-04-27T11:39:54","2021-04-27T12:37:17",{"$nulls":5},"Nei","Nei"," - ",null,null," - "," - "," - ",null,null,"02 - Normal drift","Hindrende"," - "," - "," - ","Nei","Ja",null,null,null," - ","* - IFS Applications","SEO - Serviceordre","NOK",null," - "," - "," - "," - ",null,null,"Nei","Nei","Nei","Nei","Nei","Nei","Nei","Nei","Nei","Ja"," - "," - "," - ",100," - ",{"$nulls":4},"27.04.2021 12:37 - KBSOL\r\nUtført ihht oppgavetrinn, samt rengjort gelender og vinduskarmer innvendig.",null,null,"Nei","Ja","Nei","KBIOL","2021-04-22T14:28:59","KBIOL","2021-04-22T14:28:59","KBIOL",null,1,"Månedlig kontroll utføres ihht sjekkpunkter under trinn","PmAction",null,"25944-2-","25944","2","10","1",null,null,"Nei",null,"Sann",null,"Nei",{"$f":"DATE(2021,5,27)","v":"2021-05-27"},"KBSOL"]
[782130,20,"1 månedskontroll","KB - Kristiansund lufth",315098,"Fullført","+DU996=910.472",1,"117",null,"Olsen, Inge Michael (KBIOL)","KB - Kristiansund lufth","KB200 - Kristiansund Drift","RM - Rullende materiell","3 - Til planlegging (<14d)","UTSTYR","CA - Hovedadministrasjon","AVIRAMP-AR361","UTSTYR","CA - Hovedadministrasjon","AVIRAMP-AR361","AR361","02 - Forebyggende vedlikehold"," - ","Månedlig kontroll Utføres i henhold til standard jobb sjekkliste"," - ",null,null," - ","2021-04-26T07:00:00","2021-05-02T17:00:00",1,null,"2021-05-01T07:00:00","2021-05-01T08:00:00","2021-06-29T11:16:27","2021-06-29T23:02:56",{"$nulls":5},"Nei","Nei"," - ",null,null," - "," - "," - ",null,null,"02 - Normal drift","Hindrende"," - "," - "," - ","Nei","Ja",null,null,null," - ","* - IFS Applications","SEO - Serviceordre","NOK",null," - "," - "," - "," - ",null,null,"Nei","Nei","Nei","Nei","Nei","Nei","Nei","Nei","Nei","Ja"," - "," - "," - ",100," - ",{"$nulls":4},"Motorolje kontrollert uten merknad, startet og funksjonstester.\r\nLuft må fylles i høre bakhjul, flaske fra elektrobil var tom.\r\nUtstyr skal byttes med Molde husk å avmontere vindmåler, strømkabel og batterilader hvis dette ikke er påmontert rampe levert fra Molde.",null,null,"Nei","Ja","Nei","*","2021-04-22T16:59:10","IFSAPP","2021-04-22T16:59:10","KBIOL",null,null,null,"PmAction",null,"25944-2-","25944","2","1","2",null,null,"Nei",null,null,null,"Nei",{"$f":"DATE(2021,5,27)","v":"2021-05-27"},"KBIOL"]
[789467,10,"1 månedskontroll","KB - Kristiansund lufth",322114,"Fullført","+DU996=910.472",1,"117",null,"Stokke, Frank Ronny (KBFRS)","KB - Kristiansund lufth","KB200 - Kristiansund Drift"," - ","3 - Til planlegging (<14d)","UTSTYR","CA - Hovedadministrasjon","AVIRAMP-AR361","UTSTYR","CA - Hovedadministrasjon","AVIRAMP-AR361","AR361","02 - Forebyggende vedlikehold"," - ","Månedlig kontroll Utføres i henhold til standard jobb sjekkliste"," - ",null,null," - ","2021-05-24T07:00:00","2021-05-30T17:00:00",1,null,"2021-05-29T07:00:00","2021-05-29T08:00:00","2021-05-27T12:52:29","2021-05-27T13:03:00",{"$nulls":5},"Nei","Nei"," - ",null,null," - "," - "," - ",null,null,"02 - Normal drift","Hindrende"," - "," - "," - ","Nei","Ja",null,null,null," - ","* - IFS Applications","SEO - Serviceordre","NOK",null," - "," - "," - "," - ",null,null,"Nei","Nei","Nei","Nei","Nei","Nei","Nei","Nei","Nei","Ja"," - "," - "," - ",100," - ",{"$nulls":4},"Startet motor oljenivå ok, lading 14,2 volt. Luft i høyre bakhjul justeres.\r\nTimer 170",null,null,"Nei","Ja","Nei","*","2021-05-20T03:13:05","IFSAPP","2021-05-20T03:13:05","KBIOL",null,1,"Månedlig kontroll utføres ihht sjekkpunkter under trinn","PmAction",null,"25944-2-","25944","2","2","1",null,null,"Nei",null,null,null,"Nei",{"$f":"DATE(2021,5,27)","v":"2021-05-27"},"KBIOL"]
[789468,20,"1 månedskontroll","KB - Kristiansund lufth",322114,"Fullført","+DU996=910.472",0,"117",null,"Stokke, Frank Ronny (KBFRS)","KB - Kristiansund lufth","KB200 - Kristiansund Drift","RM - Rullende materiell","3 - Til planlegging (<14d)","UTSTYR","CA - Hovedadministrasjon","AVIRAMP-AR361","UTSTYR","CA - Hovedadministrasjon","AVIRAMP-AR361","AR361","02 - Forebyggende vedlikehold"," - ","Månedlig kontroll Utføres i henhold til standard jobb sjekkliste"," - ",null,null," - ","2021-05-24T07:00:00","2021-05-30T17:00:00",1,null,"2021-05-29T07:00:00","2021-05-29T08:00:00","2021-05-27T12:52:40","2021-05-27T13:03:59",{"$nulls":5},"Nei","Nei"," - ",null,null," - "," - "," - ",null,null,"02 - Normal drift","Hindrende"," - "," - "," - ","Nei","Ja",null,null,null," - ","* - IFS Applications","SEO - Serviceordre","NOK",null," - "," - "," - "," - ",null,null,"Nei","Nei","Nei","Nei","Nei","Nei","Nei","Nei","Nei","Nei"," - "," - "," - ",100," - ",{"$nulls":4},"Se egen AO for utførelse",null,null,"Nei","Ja","Nei","*","2021-05-20T03:13:05","IFSAPP","2021-05-20T03:13:05","KBIOL",null,null,null,"PmAction",null,"25944-2-","25944","2","2","2",null,null,"Nei",null,null,null,"Nei",{"$f":"DATE(2021,5,27)","v":"2021-05-27"}]
[799642,10,"1 månedskontroll","KB - Kristiansund lufth",331910,"Fullført","+DU996=910.472",1,"117",null,"Bytingsvik, Frode (KBFBY)","KB - Kristiansund lufth","KB200 - Kristiansund Drift","RM - Rullende materiell","3 - Til planlegging (<14d)","UTSTYR","CA - Hovedadministrasjon","AVIRAMP-AR361","UTSTYR","CA - Hovedadministrasjon","AVIRAMP-AR361","AR361","02 - Forebyggende vedlikehold"," - ","Månedlig kontroll Utføres i henhold til standard jobb sjekkliste"," - ",null,null," - ","2021-06-21T07:00:00","2021-06-27T17:00:00",1,null,"2021-06-26T07:00:00","2021-06-26T08:00:00","2021-07-19T13:44:43","2021-07-19T13:48:58",{"$nulls":5},"Nei","Nei"," - ",null,null," - "," - "," - ",null,null,"02 - Normal drift","Hindrende"," - "," - "," - ","Nei","Ja",null,null,null," - ","* - IFS Applications","SEO - Serviceordre","NOK",null," - "," - "," - "," - ",null,null,"Nei","Nei","Nei","Nei","Nei","Nei","Nei","Nei","Nei","Ja"," - "," - "," - ",100," - ",{"$nulls":4},"Kontrollert i henhold til liste.",null,null,"Nei","Ja","Nei","*","2021-06-17T03:08:14","IFSAPP","2021-06-17T03:08:14","KBIOL",null,1,"Månedlig kontroll utføres ihht sjekkpunkter under trinn","PmAction",null,"25944-2-","25944","2","3","1",null,null,"Nei",null,null,null,"Nei",{"$f":"DATE(2021,5,27)","v":"2021-05-27"},"KBFRS"]
[806096,10,"Korrektivt vedlikehold","KB - Kristiansund lufth",338245,"Fullført","+KB996=910.472",37,"ZCFT-10","KBIOL","Nilsen, Roger (KBNRO)","KB - Kristiansund lufth","KB200 - Kristiansund Drift"," - ","2 - I løpet av dagen (<12t)","UTSTYR","CA - Hovedadministrasjon","AVIRAMP-CONTINENTAL-R-AR187","UTSTYR","CA - Hovedadministrasjon","AVIRAMP-CONTINENTAL-R-AR187","AR 187","01 - Korrektivt vedlikehold"," - ","Montering og klargjøring."," - ",null,null," - ",{"$nulls":6},"2021-07-02T08:16:33","2021-07-25T13:20:52",{"$nulls":5},"Nei","Nei"," - ",null,null," - "," - "," - ",null,null,"02 - Normal drift","Hindrende"," - "," - "," - ","Nei","Ja",null,null,null," - ","* - IFS Applications","SEO - Serviceordre","NOK",null," - "," - "," - "," - ",null,null,"Nei","Nei","Nei","Nei","Nei","Nei","Nei","Nei","Nei","Ja"," - "," - "," - ",100," - ",{"$nulls":4},"Reist til Molde 28.06.2021 for demontering/klargjøring for transport til Kristiansund. Montering, rengjøring og klargjøring for bruk. ",null,null,"Nei","Ja","Nei","KBJEA","2021-07-01T14:01:41","KBJEA","2021-07-01T14:01:41",{"$nulls":13},"Nei",null,null,"Sann","Nei",null,"KBBGO, KBGFL, KBIOL, KBJEA, KBNRO"]
[812921,10,"1 årskontroll","KB - Kristiansund lufth",344927,"Fullført","+DU996=910.472",5.5,"117",null,"Olsen, Inge Michael (KBIOL)","KB - Kristiansund lufth","KB200 - Kristiansund Drift","RM - Rullende materiell","3 - Til planlegging (<14d)","UTSTYR","CA - Hovedadministrasjon","AVIRAMP-AR361","UTSTYR","CA - Hovedadministrasjon","AVIRAMP-AR361","AR361","02 - Forebyggende vedlikehold"," - ","Årlig vedlikehold Utføres i henhold til standard jobb sjekkliste"," - ",null,null," - ","2021-07-26T07:00:00","2021-08-01T17:00:00",10,null,"2021-08-01T07:00:00","2021-08-01T17:00:00","2022-01-21T11:11:12","2022-01-26T10:00:00",{"$nulls":5},"Nei","Nei"," - ",null,null," - "," - "," - ",null,null,"02 - Normal drift","Hindrende"," - "," - "," - ","Nei","Ja",null,null,null," - ","* - IFS Applications","SEO - Serviceordre","NOK",null," - "," - "," - "," - ",null,null,"Nei","Nei","Nei","Nei","Nei","Nei","Nei","Nei","Nei","Ja"," - "," - "," - ",100," - ",{"$nulls":4},"Skiftet olje på fremdriftsmotor og byttet luftfilter. BG\r\nNy gassdemper montert på gangbro.\r\nDekk komplett montert \"VS Fremdrift\".",null,null,"Nei","Ja","Nei","*","2021-07-22T03:14:31","IFSAPP","2021-07-22T03:14:31","KBIOL",null,1,"Årlig vedlikehold utføres ihht sjekkpunkter under trinn","PmAction",null,"25945-1-","25945","1","1","2",null,null,"Nei",null,null,null,"Nei",null,"KBFRS, KBGFL, KBIOL"]
[816682,10,"Korrektivt vedlikehold","KB - Kristiansund lufth",348630,"Fullført","+KB996=910.472",1,"117",null,"Olsen, Sindre Krane (KBSOL)","KB - Kristiansund lufth","KB200 - Kristiansund Drift","RM - Rullende materiell"," - ","UTSTYR","CA - Hovedadministrasjon","AVIRAMP-CONTINENTAL-R-AR187","UTSTYR","CA - Hovedadministrasjon","AVIRAMP-CONTINENTAL-R-AR187","AR 187","01 - Korrektivt vedlikehold"," - ","Månedlig kontroll av Aviramp. \r\n"," - ",null,null," - ","2021-07-30T07:00:00","2021-07-31T07:00:00",{"$nulls":4},"2021-07-30T09:40:00","2021-07-30T10:10:00",{"$nulls":5},"Nei","Nei"," - ",null,null," - "," - "," - ",null,null," - ",null," - "," - "," - ","Nei","Ja",null,null,null," - ","* - IFS Applications","SEO - Serviceordre","NOK",null," - "," - "," - "," - ",null,null,"Nei","Nei","Nei","Nei","Nei","Nei","Nei","Nei","Nei","Ja"," - "," - "," - ",100," - ",{"$nulls":4},"Pga manglende FV-tiltak etter overføring fra Molde blir denne kontrollen ført som korrektivt vedlikehold.\r\nIngen mangler funnet. OK nivå på olje. Batteri målt til 14V etter oppstart. 12,6V uten belastning.",null,null,"Nei","Nei","Nei","KBSOL","2021-07-30T12:30:07","KBSOL","2021-07-30T12:32:12",{"$nulls":13},"Nei",null,null,null,"Nei",null,"KBIOL, KBSOL"]
[820375,10,"1 månedskontroll","KB - Kristiansund lufth",352241,"Fullført","+DU996=910.472",1,"117",null,"Olsen, Sindre Krane (KBSOL)","KB - Kristiansund lufth","KB200 - Kristiansund Drift","RM - Rullende materiell","3 - Til planlegging (<14d)","UTSTYR","CA - Hovedadministrasjon","AVIRAMP-AR361","UTSTYR","CA - Hovedadministrasjon","AVIRAMP-AR361","AR361","02 - Forebyggende vedlikehold"," - ","Månedlig kontroll Utføres i henhold til standard jobb sjekkliste"," - ",null,null," - ","2021-08-16T07:00:00","2021-08-22T17:00:00",1,null,"2021-08-21T07:00:00","2021-08-21T08:00:00","2021-08-20T11:13:12","2021-08-21T16:35:14",{"$nulls":5},"Nei","Nei"," - ",null,null," - "," - "," - ",null,null,"02 - Normal drift","Hindrende"," - "," - "," - ","Nei","Ja",null,null,null," - ","* - IFS Applications","SEO - Serviceordre","NOK",null," - "," - "," - "," - ",null,null,"Nei","Nei","Nei","Nei","Nei","Nei","Nei","Nei","Nei","Ja"," - "," - "," - ",100," - ",{"$nulls":4},"21.08.2021 16:35 - KBSOL\r\nUtført ihht sjekkliste. Ingen mangler",null,null,"Nei","Ja","Nei","*","2021-08-12T03:12:04","IFSAPP","2021-08-12T03:12:04","KBIOL",null,1,"Månedlig kontroll utføres ihht sjekkpunkter under trinn","PmAction",null,"25944-2-","25944","2","5","1",null,null,"Nei",null,"Sann",null,"Nei",{"$f":"DATE(2021,5,27)","v":"2021-05-27"},"KBSOL"]
[831314,10,"1 månedskontroll","KB - Kristiansund lufth",362937,"Fullført","+KB996=910.472",1,"117",null,"Olsen, Sindre Krane (KBSOL)","KB - Kristiansund lufth","KB200 - Kristiansund Drift","RM - Rullende materiell","3 - Til planlegging (<14d)","UTSTYR","CA - Hovedadministrasjon","AVIRAMP-CONTINENTAL-R-AR187","UTSTYR","CA - Hovedadministrasjon","AVIRAMP-CONTINENTAL-R-AR187","AR 187","02 - Forebyggende vedlikehold"," - ","Månedlig kontroll Utføres i henhold til standard jobb sjekkliste"," - ",null,null," - ","2021-09-13T07:00:00","2021-09-19T17:00:00",1,null,"2021-09-18T07:00:00","2021-09-18T08:00:00","2021-09-15T09:38:23","2021-09-17T12:41:31",{"$nulls":5},"Nei","Nei"," - ",null,null," - "," - "," - ",null,null,"02 - Normal drift","Hindrende"," - "," - "," - ","Nei","Ja",null,null,null," - ","* - IFS Applications","SEO - Serviceordre","NOK",null," - "," - "," - "," - ",null,null,"Nei","Nei","Nei","Nei","Nei","Nei","Nei","Nei","Nei","Ja"," - "," - "," - ",100," - ",{"$nulls":4},"Utført ihht. sjekkliste. Ingen mangler. Vasket og tørket av rekkverk og andre typiske støvsamlingsplasser.",null,null,"Nei","Ja","Nei","*","2021-09-09T03:13:45","IFSAPP","2021-09-09T03:13:45","KBIOL",null,1,"Månedlig kontroll utføres ihht sjekkpunkter under trinn","PmAction",null,"31974-1-","31974","1","1","1",null,null,"Nei",null,null,null,"Nei",null,"KBSOL"]
[844848,10,"1 månedskontroll","KB - Kristiansund lufth",376251,"Fullført","+KB996=910.472",1,"117",null,"Olsen, Sindre Krane (KBSOL)","KB - Kristiansund lufth","KB200 - Kristiansund Drift","RM - Rullende materiell","3 - Til planlegging (<14d)","UTSTYR","CA - Hovedadministrasjon","AVIRAMP-CONTINENTAL-R-AR187","UTSTYR","CA - Hovedadministrasjon","AVIRAMP-CONTINENTAL-R-AR187","AR 187","02 - Forebyggende vedlikehold"," - ","Månedlig kontroll Utføres i henhold til standard jobb sjekkliste"," - ",null,null," - ","2021-10-11T07:00:00","2021-10-17T17:00:00",1,null,"2021-10-16T07:00:00","2021-10-16T08:00:00","2021-10-12T15:40:48","2021-10-12T15:48:41",{"$nulls":5},"Nei","Nei"," - ",null,null," - "," - "," - ",null,null,"02 - Normal drift","Hindrende"," - "," - "," - ","Nei","Ja",null,null,null," - ","* - IFS Applications","SEO - Serviceordre","NOK",null," - "," - "," - "," - ",null,null,"Nei","Nei","Nei","Nei","Nei","Nei","Nei","Nei","Nei","Ja"," - "," - "," - ",100," - ",{"$nulls":4},"12.10.2021 15:43 - KBSOL\r\nUtført ihht sjekkliste. OK. Tørket over skitne overflater på rekkverk osv.",null,null,"Nei","Ja","Nei","*","2021-10-07T03:17:47","IFSAPP","2021-10-07T03:17:47","KBIOL",null,1,"Månedlig kontroll utføres ihht sjekkpunkter under trinn","PmAction",null,"31974-2-","31974","2","2","1",null,null,"Nei",null,"Sann",null,"Nei",{"$f":"DATE(2025,10,29)","v":"2025-10-29"},"KBSOL"]
[860778,10,"1 månedskontroll","KB - Kristiansund lufth",391925,"Fullført","+KB996=910.472",0.5,"117;ZCFT-10","KBSOL","Olsen, Sindre Krane (KBSOL)","KB - Kristiansund lufth","KB200 - Kristiansund Drift","RM - Rullende materiell","3 - Til planlegging (<14d)","UTSTYR","CA - Hovedadministrasjon","AVIRAMP-CONTINENTAL-R-AR187","UTSTYR","CA - Hovedadministrasjon","AVIRAMP-CONTINENTAL-R-AR187","AR 187","02 - Forebyggende vedlikehold"," - ","Månedlig kontroll Utføres i henhold til standard jobb sjekkliste"," - ",null,null," - ","2021-11-08T07:00:00","2021-11-14T17:00:00",1,null,"2021-11-13T07:00:00","2021-11-13T08:00:00","2021-11-14T13:18:24","2021-11-14T13:35:17",{"$nulls":5},"Nei","Nei"," - ",null,null," - "," - "," - ",null,null,"02 - Normal drift","Hindrende"," - "," - "," - ","Nei","Ja",null,null,null," - ","* - IFS Applications","SEO - Serviceordre","NOK",null," - "," - "," - "," - ",null,null,"Nei","Nei","Nei","Nei","Nei","Nei","Nei","Nei","Nei","Ja"," - "," - "," - ",100," - ",{"$nulls":4},"14.11.2021 13:35 - KBSOL\r\nUtført ihht sjekkliste. Ok. Tørket over håndrails og vinduskarmer.",null,null,"Nei","Ja","Nei","*","2021-11-04T03:22:01","IFSAPP","2021-11-04T03:22:01","KBIOL",null,1,"Månedlig kontroll utføres ihht sjekkpunkter under trinn","PmAction",null,"31974-2-","31974","2","3","1",null,null,"Nei",null,"Sann",null,"Nei",{"$f":"DATE(2025,10,29)","v":"2025-10-29"},"KBSOL"]
[877398,10,"1 månedskontroll","KB - Kristiansund lufth",408272,"Fullført","+KB996=910.472",4,"117",null,"Silseth, Rune (KBSRU)","KB - Kristiansund lufth","KB200 - Kristiansund Drift","RM - Rullende materiell","3 - Til planlegging (<14d)","UTSTYR","CA - Hovedadministrasjon","AVIRAMP-CONTINENTAL-R-AR187","UTSTYR","CA - Hovedadministrasjon","AVIRAMP-CONTINENTAL-R-AR187","AR 187","02 - Forebyggende vedlikehold"," - ","Månedlig kontroll Utføres i henhold til standard jobb sjekkliste"," - ",null,null," - ","2021-12-06T07:00:00","2021-12-12T17:00:00",1,null,"2021-12-11T07:00:00","2021-12-11T08:00:00","2021-12-10T12:53:29","2021-12-10T12:56:20",{"$nulls":5},"Nei","Nei"," - ",null,null," - "," - "," - ",null,null,"02 - Normal drift","Hindrende"," - "," - "," - ","Nei","Ja",null,null,null," - ","* - IFS Applications","SEO - Serviceordre","NOK",null," - "," - "," - "," - ",null,null,"Nei","Nei","Nei","Nei","Nei","Nei","Nei","Nei","Nei","Ja"," - "," - "," - ",100," - ",{"$nulls":4},"Tatt inn på verksted rengjort og kontrollert",null,null,"Nei","Ja","Nei","*","2021-12-02T03:21:03","IFSAPP","2021-12-02T03:21:03","KBIOL",null,1,"Månedlig kontroll utføres ihht sjekkpunkter under trinn","PmAction",null,"31974-2-","31974","2","4","1",null,null,"Nei",null,null,null,"Nei",{"$f":"DATE(2025,10,29)","v":"2025-10-29"},"KBIOL, KBSRU"]
[896538,10,"1 månedskontroll","KB - Kristiansund lufth",427119,"Fullført","+KB996=910.472",0.75,"117",null,"Olsen, Sindre Krane (KBSOL)","KB - Kristiansund lufth","KB200 - Kristiansund Drift","RM - Rullende materiell","3 - Til planlegging (<14d)","UTSTYR","CA - Hovedadministrasjon","AVIRAMP-CONTINENTAL-R-AR187","UTSTYR","CA - Hovedadministrasjon","AVIRAMP-CONTINENTAL-R-AR187","AR 187","02 - Forebyggende vedlikehold"," - ","Månedlig kontroll Utføres i henhold til standard jobb sjekkliste"," - ",null,null," - ","2022-01-03T07:00:00","2022-01-09T17:00:00",1,null,"2022-01-08T07:00:00","2022-01-08T08:00:00","2022-01-07T12:43:12","2022-01-07T12:46:49",{"$nulls":5},"Nei","Nei"," - ",null,null," - "," - "," - ",null,null,"02 - Normal drift","Hindrende"," - "," - "," - ","Nei","Ja",null,null,null," - ","* - IFS Applications","SEO - Serviceordre","NOK",null," - "," - "," - "," - ",null,null,"Nei","Nei","Nei","Nei","Nei","Nei","Nei","Nei","Nei","Ja"," - "," - "," - ",100," - ",{"$nulls":4},"Utført ihht sjekkliste.\r\nTørket over berøringsflater på innsiden.",null,null,"Nei","Ja","Nei","*","2021-12-30T03:25:01","IFSAPP","2021-12-30T03:25:01","KBIOL",null,1,"Månedlig kontroll utføres ihht sjekkpunkter under trinn","PmAction",null,"31974-2-","31974","2","5","1",null,null,"Nei",null,null,null,"Nei",{"$f":"DATE(2025,10,29)","v":"2025-10-29"},"KBSOL"]
[908847,10,"Korrektivt vedlikehold","KB - Kristiansund lufth",438640,"Fullført","+KB996=910.472",23.5,"117;ZCFT-10","KBIOL","Silseth, Rune (KBSRU)","KB - Kristiansund lufth","KB200 - Kristiansund Drift","RM - Rullende materiell"," - ","UTSTYR","CA - Hovedadministrasjon","AVIRAMP-CONTINENTAL-R-AR187","UTSTYR","CA - Hovedadministrasjon","AVIRAMP-CONTINENTAL-R-AR187","AR 187","01 - Korrektivt vedlikehold"," - ","Sylinder på på første gangvei er ødelagt. Sveiser på gangvei er oså gåen så den må sveises og forsterkes."," - ",null,null," - ","2022-01-18T07:00:00","2022-01-31T07:00:00",{"$nulls":4},"2022-01-18T21:04:19","2022-01-24T14:17:22",{"$nulls":5},"Nei","Nei"," - ",null,null," - "," - "," - ",null,null," - ",null," - "," - "," - ","Nei","Ja",null,null,null," - ","* - IFS Applications","SEO - Serviceordre","NOK",null," - "," - "," - "," - ",null,null,"Nei","Nei","Nei","Nei","Nei","Nei","Nei","Nei","Nei","Ja"," - "," - "," - ",100," - ",{"$nulls":4},"Hentet opp Aviramp opp til verksted. Demontert innfesting til øvre sylinderfeste . Tatt det av og sveiset det på igjen med forsterket plate bak. Sveiset opp sprekker i gelender på begge sider på gangvei.\r\nGassdemper demontert Wist LB har satt leverandør av dempere på saken, demper med så stor kraft må lages venter på avklaring ang levering av demper.\r\nDekk v.s framdrift er defekt levert Auto Elektro for ny montering, her ble det gitt beskjed om at levering haster, venter på tilbakemelding ang levering.\r\nSkiftet olje på fremdriftsmotor og byttet luftfilter.\r\nNy gassdemper montert på gangbro.\r\nDekk komplett montert",null,null,"Nei","Nei","Nei","KBNRO","2022-01-18T20:54:48","KBNRO","2022-01-18T20:59:42",{"$nulls":13},"Nei",null,null,null,"Nei",null,"KBBGO, KBGFL, KBIOL, KBNRO, KBSRU"]
[915189,10,"1 månedskontroll","KB - Kristiansund lufth",444894,"Fullført","+KB996=910.472",2,"117",null,"Olsen, Inge Michael (KBIOL)","KB - Kristiansund lufth","KB200 - Kristiansund Drift","RM - Rullende materiell","3 - Til planlegging (<14d)","UTSTYR","CA - Hovedadministrasjon","AVIRAMP-CONTINENTAL-R-AR187","UTSTYR","CA - Hovedadministrasjon","AVIRAMP-CONTINENTAL-R-AR187","AR 187","02 - Forebyggende vedlikehold"," - ","Månedlig kontroll Utføres i henhold til standard jobb sjekkliste"," - ",null,null," - ","2022-01-31T07:00:00","2022-02-06T17:00:00",1,null,"2022-02-05T07:00:00","2022-02-05T08:00:00","2022-02-03T13:26:24","2022-02-03T13:38:04",{"$nulls":5},"Nei","Nei"," - ",null,null," - "," - "," - ",null,null,"02 - Normal drift","Hindrende"," - "," - "," - ","Nei","Ja",null,null,null," - ","* - IFS Applications","SEO - Serviceordre","NOK",null," - "," - "," - "," - ",null,null,"Nei","Nei","Nei","Nei","Nei","Nei","Nei","Nei","Nei","Ja"," - "," - "," - ",100," - ",{"$nulls":4},"Kontroll utført i verksted.",null,null,"Nei","Ja","Nei","*","2022-01-27T03:35:05","IFSAPP","2022-01-27T03:35:05","KBIOL",null,1,"Månedlig kontroll utføres ihht sjekkpunkter under trinn","PmAction",null,"31974-2-","31974","2","6","1",null,null,"Nei",null,null,null,"Nei",{"$f":"DATE(2025,10,29)","v":"2025-10-29"},"KBIOL"]
[922656,10,"Korrektivt vedlikehold","KB - Kristiansund lufth",452265,"Fullført","+KB996=910.472",10.5,"117",null,"Olsen, Inge Michael (KBIOL)","KB - Kristiansund lufth","KB200 - Kristiansund Drift","RM - Rullende materiell"," - ","UTSTYR","CA - Hovedadministrasjon","AVIRAMP-CONTINENTAL-R-AR187","UTSTYR","CA - Hovedadministrasjon","AVIRAMP-CONTINENTAL-R-AR187","AR 187","01 - Korrektivt vedlikehold"," - ","Startproblem"," - ",null,null," - ","2022-02-02T07:00:00","2022-02-03T15:00:00",{"$nulls":4},"2022-02-03T13:29:49","2022-02-03T13:36:12",{"$nulls":5},"Nei","Nei"," - ",null,null," - "," - "," - ",null,null," - ",null," - "," - "," - ","Nei","Ja",null,null,null," - ","* - IFS Applications","SEO - Serviceordre","NOK",null," - "," - "," - "," - ",null,null,"Nei","Nei","Nei","Nei","Nei","Nei","Nei","Nei","Nei","Ja"," - "," - "," - ",100," - ",{"$nulls":4},"Utstyr feilet under avgang med SAS, feilsøkt på startproblem her ble det oppdaget at ledning påmontert diode festet til chassis var defekt slitt av. Ny abico montert på ledning som ble festet til motor chassis. Fortsatt opplevdes motor som tung å starte, videre feilsøking ble utført der styrerele til stoppsolenoid manglet riktige signaler. Mulig en nødstopp var delvis aktivert for etter mye testing og analysering ble det konkludert med at utsyr startet som den skulle, utsyr levert WGH for videre drift.\r\nNytt batteri og hovedstrømbryter ble montert.",null,null,"Nei","Nei","Nei","KBIOL","2022-02-03T13:28:59","KBIOL","2022-02-03T13:29:41",{"$nulls":4},"JtTaskStep","KB","915189-701377-Kontrollere at motor starter og fungerer problemfritt.","915189","701377",{"$nulls":4},"Nei",null,null,null,"Nei",null,"KBIOL"]
[932330,10,"Korrektivt vedlikehold","KB - Kristiansund lufth",461753,"Fullført","+KB996=910.472",2,"117",null,"Nilsen, Roger (KBNRO)","KB - Kristiansund lufth","KB200 - Kristiansund Drift","RM - Rullende materiell"," - ","UTSTYR","CA - Hovedadministrasjon","AVIRAMP-CONTINENTAL-R-AR187","UTSTYR","CA - Hovedadministrasjon","AVIRAMP-CONTINENTAL-R-AR187","AR 187","01 - Korrektivt vedlikehold"," - ","Bytte av skadet hjul, her ble nytt hjul hentet fra Molde pga av tidsperspektivet til å få utstyr operativt."," - ",null,null," - ","2022-02-23T07:00:00","2022-02-23T15:00:00",{"$nulls":4},"2022-02-23T09:25:00","2022-02-23T12:21:23",{"$nulls":5},"Nei","Nei"," - ",null,null," - "," - "," - ",null,null," - ",null," - "," - "," - ","Nei","Ja",null,null,null," - ","* - IFS Applications","SEO - Serviceordre","NOK",null," - "," - "," - "," - ",null,null,"Nei","Nei","Nei","Nei","Nei","Nei","Nei","Nei","Nei","Ja"," - "," - "," - ",100," - ",{"$nulls":4},"Nytt dekk komplett monter",null,null,"Nei","Nei","Nei","KBIOL","2022-02-23T09:23:16","KBIOL","2022-02-23T09:24:54",{"$nulls":13},"Nei",null,null,null,"Nei",null,"KBIOL"]
[934275,10,"1 månedskontroll","KB - Kristiansund lufth",463672,"Fullført","+KB996=910.472",0.5,"117;ZCFT-10","KBSOL","Olsen, Sindre Krane (KBSOL)","KB - Kristiansund lufth","KB200 - Kristiansund Drift","RM - Rullende materiell","3 - Til planlegging (<14d)","UTSTYR","CA - Hovedadministrasjon","AVIRAMP-CONTINENTAL-R-AR187","UTSTYR","CA - Hovedadministrasjon","AVIRAMP-CONTINENTAL-R-AR187","AR 187","02 - Forebyggende vedlikehold"," - ","Månedlig kontroll Utføres i henhold til standard jobb sjekkliste"," - ",null,null," - ","2022-02-28T07:00:00","2022-03-06T17:00:00",1,null,"2022-03-05T07:00:00","2022-03-05T08:00:00","2022-03-10T15:57:54","2022-03-10T16:37:17",{"$nulls":5},"Nei","Nei"," - ",null,null," - "," - "," - ",null,null,"02 - Normal drift","Hindrende"," - "," - "," - ","Nei","Ja",null,null,null," - ","* - IFS Applications","SEO - Serviceordre","NOK",null," - "," - "," - "," - ",null,null,"Nei","Nei","Nei","Nei","Nei","Nei","Nei","Nei","Nei","Ja"," - "," - "," - ",100," - ",{"$nulls":4},"10.03.2022 16:36 - KBSOL\r\nUtført ihht sjekkliste, OK. \nTørket støv skitt bort fra kontaktflater inne i aviramp. \nTestkjørt hydraulikk. Alt OK! \nNymonterte lys fungerer bra. WGH v/ Kurt ble informert rundt funksjon og kobling.",null,null,"Nei","Ja","Nei","*","2022-02-24T03:39:37","IFSAPP","2022-02-24T03:39:37","KBIOL",null,1,"Månedlig kontroll utføres ihht sjekkpunkter under trinn","PmAction",null,"31974-2-","31974","2","7","1",null,null,"Nei",null,"Sann",null,"Nei",{"$f":"DATE(2025,10,29)","v":"2025-10-29"},"KBSOL"]
[947836,10,"Korrektivt vedlikehold","KB - Kristiansund lufth",476920,"Fullført","+KB996=910.472",4,"117",null,"Olsen, Inge Michael (KBIOL)","KB - Kristiansund lufth","KB200 - Kristiansund Drift","RM - Rullende materiell"," - ","UTSTYR","CA - Hovedadministrasjon","AVIRAMP-CONTINENTAL-R-AR187","UTSTYR","CA - Hovedadministrasjon","AVIRAMP-CONTINENTAL-R-AR187","AR 187","01 - Korrektivt vedlikehold"," - ","Feste til håndtak for styring av rampe."," - ",null,null," - ","2022-03-16T11:00:00","2022-03-17T15:00:00",{"$nulls":4},"2022-03-16T14:29:06","2022-04-20T09:53:35",{"$nulls":5},"Nei","Nei"," - ",null,null," - "," - "," - ",null,null," - ",null," - "," - "," - ","Nei","Ja",null,null,null," - ","* - IFS Applications","SEO - Serviceordre","NOK",null," - "," - "," - "," - ",null,null,"Nei","Nei","Nei","Nei","Nei","Nei","Nei","Nei","Nei","Ja"," - "," - "," - ",100," - ",{"$nulls":4},"Deler avmontert for produksjon av ny.\r\nTig Mek lager nytt feste.\r\nNytt feste montert 19.04",null,null,"Nei","Nei","Nei","KBIOL","2022-03-16T14:15:55","KBIOL","2022-03-16T14:28:07",{"$nulls":13},"Nei",null,null,null,"Nei",null,"KBIOL"]
[954482,10,"1 månedskontroll","KB - Kristiansund lufth",483473,"Fullført","+KB996=910.472",0.5,"117",null,"Olsen, Sindre Krane (KBSOL)","KB - Kristiansund lufth","KB200 - Kristiansund Drift","RM - Rullende materiell","3 - Til planlegging (<14d)","UTSTYR","CA - Hovedadministrasjon","AVIRAMP-CONTINENTAL-R-AR187","UTSTYR","CA - Hovedadministrasjon","AVIRAMP-CONTINENTAL-R-AR187","AR 187","02 - Forebyggende vedlikehold"," - ","Månedlig kontroll Utføres i henhold til standard jobb sjekkliste"," - ",null,null," - ","2022-03-28T07:00:00","2022-04-03T17:00:00",1,null,"2022-04-02T07:00:00","2022-04-02T08:00:00","2022-04-09T15:56:15","2022-04-09T15:58:56",{"$nulls":5},"Nei","Nei"," - ",null,null," - "," - "," - ",null,null,"02 - Normal drift","Hindrende"," - "," - "," - ","Nei","Ja",null,null,null," - ","* - IFS Applications","SEO - Serviceordre","NOK",null," - "," - "," - "," - ",null,null,"Nei","Nei","Nei","Nei","Nei","Nei","Nei","Nei","Nei","Ja"," - "," - "," - ",100," - ",{"$nulls":4},"Utført ihht sjekkliste, OK.\r\nTørket over skitne flater inne i rampen. Ellers funnet i orden.",null,null,"Nei","Ja","Nei","*","2022-03-24T03:48:07","IFSAPP","2022-03-24T03:48:07","KBIOL",null,1,"Månedlig kontroll utføres ihht sjekkpunkter under trinn","PmAction",null,"31974-2-","31974","2","8","1",null,null,"Nei",null,null,null,"Nei",{"$f":"DATE(2025,10,29)","v":"2025-10-29"},"KBSOL"]
[975271,10,"1 månedskontroll","KB - Kristiansund lufth",503979,"Fullført","+KB996=910.472",0.75,"117",null,"Olsen, Sindre Krane (KBSOL)","KB - Kristiansund lufth","KB200 - Kristiansund Drift","RM - Rullende materiell","3 - Til planlegging (<14d)","UTSTYR","CA - Hovedadministrasjon","AVIRAMP-CONTINENTAL-R-AR187","UTSTYR","CA - Hovedadministrasjon","AVIRAMP-CONTINENTAL-R-AR187","AR 187","02 - Forebyggende vedlikehold"," - ","Månedlig kontroll Utføres i henhold til standard jobb sjekkliste"," - ",null,null," - ","2022-04-25T07:00:00","2022-05-01T17:00:00",1,null,"2022-04-30T07:00:00","2022-04-30T08:00:00","2022-05-04T19:51:52","2022-05-04T19:53:50",{"$nulls":5},"Nei","Nei"," - ",null,null," - "," - "," - ",null,null,"02 - Normal drift","Hindrende"," - "," - "," - ","Nei","Ja",null,null,null," - ","* - IFS Applications","SEO - Serviceordre","NOK",null," - "," - "," - "," - ",null,null,"Nei","Nei","Nei","Nei","Nei","Nei","Nei","Nei","Nei","Ja"," - "," - "," - ",100," - ",{"$nulls":4},"Utført ihht sjekkliste, OK. \r\nTørket over håndløpere og flater.",null,null,"Nei","Ja","Nei","*","2022-04-21T03:57:00","IFSAPP","2022-04-21T03:57:00","KBIOL",null,1,"Månedlig kontroll utføres ihht sjekkpunkter under trinn","PmAction",null,"31974-2-","31974","2","9","1",null,null,"Nei",null,null,null,"Nei",{"$f":"DATE(2025,10,29)","v":"2025-10-29"},"KBSOL"]
[1014518,10,"1 månedskontroll","KB - Kristiansund lufth",542697,"Fullført","+KB996=910.472",1,"117;ZCFT-10","KBSOL","Olsen, Sindre Krane (KBSOL)","KB - Kristiansund lufth","KB200 - Kristiansund Drift","RM - Rullende materiell","3 - Til planlegging (<14d)","UTSTYR","CA - Hovedadministrasjon","AVIRAMP-CONTINENTAL-R-AR187","UTSTYR","CA - Hovedadministrasjon","AVIRAMP-CONTINENTAL-R-AR187","AR 187","02 - Forebyggende vedlikehold"," - ","Månedlig kontroll Utføres i henhold til standard jobb sjekkliste"," - ",null,null," - ","2022-06-20T07:00:00","2022-06-26T17:00:00",1,null,"2022-06-25T07:00:00","2022-06-25T08:00:00","2022-06-22T19:57:28","2022-06-22T19:58:52",{"$nulls":5},"Nei","Nei"," - ",null,null," - "," - "," - ",null,null,"02 - Normal drift","Hindrende"," - "," - "," - ","Nei","Ja",null,null,null," - ","* - IFS Applications","SEO - Serviceordre","NOK",null," - "," - "," - "," - ",null,null,"Nei","Nei","Nei","Nei","Nei","Nei","Nei","Nei","Nei","Ja"," - "," - "," - ",100," - ",{"$nulls":4},"Utført ihht sjekkliste, OK",null,null,"Nei","Ja","Nei","*","2022-06-16T03:36:35","IFSAPP","2022-06-16T03:36:35","KBIOL",null,1,"Månedlig kontroll utføres ihht sjekkpunkter under trinn","PmAction",null,"31974-2-","31974","2","11","1",null,null,"Nei",null,null,null,"Nei",{"$f":"DATE(2025,10,29)","v":"2025-10-29"},"KBSOL"]
[1023179,10,"Korrektivt vedlikehold","KB - Kristiansund lufth",551276,"Fullført","+KB996=910.472",1,"117",null,"Flatøy, Gunnar (KBGFL)","KB - Kristiansund lufth","KB200 - Kristiansund Drift","RM - Rullende materiell"," - ","UTSTYR","CA - Hovedadministrasjon","AVIRAMP-CONTINENTAL-R-AR187","UTSTYR","CA - Hovedadministrasjon","AVIRAMP-CONTINENTAL-R-AR187","AR 187","01 - Korrektivt vedlikehold"," - ","Ladeledning defekt"," - ",null,null," - ",{"$nulls":6},"2022-06-23T20:00:00","2022-06-23T21:31:00",{"$nulls":5},"Nei","Nei"," - ",null,null," - "," - "," - ",null,null," - ",null," - "," - "," - ","Nei","Ja",null,null,null," - ","* - IFS Applications","SEO - Serviceordre","NOK",null," - "," - "," - "," - ",null,null,"Nei","Nei","Nei","Nei","Nei","Nei","Nei","Nei","Nei","Ja"," - "," - "," - ",100," - ",{"$nulls":4},"Byttet støpsel på ladeledning",null,null,"Nei","Nei","Nei","KBGFL","2022-06-23T21:28:50","KBGFL","2022-06-23T21:29:24",{"$nulls":13},"Nei",null,null,null,"Nei",null,"KBGFL"]
[1033660,10,"1 månedskontroll","KB - Kristiansund lufth",561571,"Fullført","+KB996=910.472",1,"117;ZCFT-10","KBSOL","Olsen, Sindre Krane (KBSOL)","KB - Kristiansund lufth","KB200 - Kristiansund Drift","RM - Rullende materiell","3 - Til planlegging (<14d)","UTSTYR","CA - Hovedadministrasjon","AVIRAMP-CONTINENTAL-R-AR187","UTSTYR","CA - Hovedadministrasjon","AVIRAMP-CONTINENTAL-R-AR187","AR 187","02 - Forebyggende vedlikehold"," - ","Månedlig kontroll Utføres i henhold til standard jobb sjekkliste"," - ",null,null," - ","2022-07-18T07:00:00","2022-07-24T17:00:00",1,null,"2022-07-23T07:00:00","2022-07-23T08:00:00","2022-08-10T15:44:28","2022-08-10T16:26:22",{"$nulls":5},"Nei","Nei"," - ",null,null," - "," - "," - ",null,null,"02 - Normal drift","Hindrende"," - "," - "," - ","Nei","Ja",null,null,null," - ","* - IFS Applications","SEO - Serviceordre","NOK",null," - "," - "," - "," - ",null,null,"Nei","Nei","Nei","Nei","Nei","Nei","Nei","Nei","Nei","Ja"," - "," - "," - ",100," - ",{"$nulls":4},"Utført ihht sjekkliste, OK",null,null,"Nei","Ja","Nei","*","2022-07-14T03:39:43","IFSAPP","2022-07-14T03:39:43","KBIOL",null,1,"Månedlig kontroll utføres ihht sjekkpunkter under trinn","PmAction",null,"31974-2-","31974","2","12","1",null,null,"Nei",null,null,null,"Nei",{"$f":"DATE(2025,10,29)","v":"2025-10-29"},"KBSOL"]
[1042272,10,"1 årskontroll","KB - Kristiansund lufth",570073,"Fullført","+KB996=910.472",2,"117;ZCFT-10;ZCFT-10","KBSOL;KBIOL","Olsen, Inge Michael (KBIOL)","KB - Kristiansund lufth","KB200 - Kristiansund Drift","RM - Rullende materiell","3 - Til planlegging (<14d)","UTSTYR","CA - Hovedadministrasjon","AVIRAMP-CONTINENTAL-R-AR187","UTSTYR","CA - Hovedadministrasjon","AVIRAMP-CONTINENTAL-R-AR187","AR 187","02 - Forebyggende vedlikehold"," - ","Årlig vedlikehold Utføres i henhold til standard jobb sjekkliste"," - ",null,null," - ","2022-08-01T07:00:00","2022-08-07T17:00:00",10,null,"2022-08-01T07:00:00","2022-09-13T17:00:00","2022-09-12T18:03:18","2022-09-21T13:21:34",{"$nulls":5},"Nei","Nei"," - ",null,null," - "," - "," - ",null,null,"02 - Normal drift","Hindrende"," - "," - "," - ","Nei","Ja",null,null,null," - ","* - IFS Applications","SEO - Serviceordre","NOK",null," - "," - "," - "," - ",null,null,"Nei","Nei","Nei","Nei","Nei","Nei","Nei","Nei","Nei","Ja"," - "," - "," - ",100," - ",{"$nulls":4},"Byttet motorolje (ca 0,5 - 0,75l), kontrollert og etterstrammet bolter, testkjørt stabilitetsbein og løftesylinder til plattform.\r\nTørket over motor for oljesøl og smuss. Grundigere tørking av støv og skitt langs håndløpere.\r\nGenerell visuell kontroll av rammeverk osv ihht sjekkliste.\r\nResterende punkter tas 13.09. \r\n- KBSOL 12.09\r\n\r\nUtført 13.09:\r\nKontrollert lading på batteri, funnet i orden. 14V under gange.\r\nSmurt løftestag til plattform med CRC-spray, også smurt div smørepunkter med fett.\r\nVisuell kontroll av hydraulikkslanger fram til løftesylinder til plattform, ingen anmerkninger.\r\n-KBSOL\r\nDiesel filter er bestilt 16.09 fra Lekang leveres 19.09 ",null,null,"Nei","Ja","Nei","*","2022-07-28T03:54:40","IFSAPP","2022-07-28T03:54:40","KBIOL",null,1,"Årlig vedlikehold utføres ihht sjekkpunkter under trinn","PmAction",null,"31975-1-","31975","1","1","1",null,null,"Nei",null,null,null,"Nei",{"$f":"DATE(2024,10,27)","v":"2024-10-27"},"KBSOL"]
[1051737,10,"1 månedskontroll","KB - Kristiansund lufth",579435,"Fullført","+KB996=910.472",1,"117;ZCFT-10","KBSOL","Olsen, Sindre Krane (KBSOL)","KB - Kristiansund lufth","KB200 - Kristiansund Drift","RM - Rullende materiell","3 - Til planlegging (<14d)","UTSTYR","CA - Hovedadministrasjon","AVIRAMP-CONTINENTAL-R-AR187","UTSTYR","CA - Hovedadministrasjon","AVIRAMP-CONTINENTAL-R-AR187","AR 187","02 - Forebyggende vedlikehold"," - ","Månedlig kontroll Utføres i henhold til standard jobb sjekkliste"," - ",null,null," - ","2022-08-15T07:00:00","2022-08-21T17:00:00",1,null,"2022-08-20T07:00:00","2022-08-20T08:00:00","2022-08-21T21:59:51","2022-08-21T22:01:18",{"$nulls":5},"Nei","Nei"," - ",null,null," - "," - "," - ",null,null,"02 - Normal drift","Hindrende"," - "," - "," - ","Nei","Ja",null,null,null," - ","* - IFS Applications","SEO - Serviceordre","NOK",null," - "," - "," - "," - ",null,null,"Nei","Nei","Nei","Nei","Nei","Nei","Nei","Nei","Nei","Ja"," - "," - "," - ",100," - ",{"$nulls":4},"21.08.2022 21:59 - KBSOL\r\nUtført ihht sjekkliste, OK",null,null,"Nei","Ja","Nei","*","2022-08-11T03:41:37","IFSAPP","2022-08-11T03:41:37","KBIOL",null,1,"Månedlig kontroll utføres ihht sjekkpunkter under trinn","PmAction",null,"31974-2-","31974","2","13","1",null,null,"Nei",null,"Sann",null,"Nei",{"$f":"DATE(2025,10,29)","v":"2025-10-29"},"KBSOL"]
[1070740,10,"1 månedskontroll","KB - Kristiansund lufth",598107,"Fullført","+KB996=910.472",0.25,"117",null,"Olsen, Sindre Krane (KBSOL)","KB - Kristiansund lufth","KB200 - Kristiansund Drift","RM - Rullende materiell","3 - Til planlegging (<14d)","UTSTYR","CA - Hovedadministrasjon","AVIRAMP-CONTINENTAL-R-AR187","UTSTYR","CA - Hovedadministrasjon","AVIRAMP-CONTINENTAL-R-AR187","AR 187","02 - Forebyggende vedlikehold"," - ","Månedlig kontroll Utføres i henhold til standard jobb sjekkliste"," - ",null,null," - ","2022-09-12T07:00:00","2022-09-18T17:00:00",1,null,"2022-09-17T07:00:00","2022-09-17T08:00:00","2022-09-12T19:29:09","2022-09-12T19:29:46",{"$nulls":5},"Nei","Nei"," - ",null,null," - "," - "," - ",null,null,"02 - Normal drift","Hindrende"," - "," - "," - ","Nei","Ja",null,null,null," - ","* - IFS Applications","SEO - Serviceordre","NOK",null," - "," - "," - "," - ",null,null,"Nei","Nei","Nei","Nei","Nei","Nei","Nei","Nei","Nei","Ja"," - "," - "," - ",100," - ",{"$nulls":4},"Utført i sammenheng med årlig kontroll. Timer ført på den årlige AOen",null,null,"Nei","Ja","Nei","*","2022-09-08T03:48:40","IFSAPP","2022-09-08T03:48:40","KBIOL",null,1,"Månedlig kontroll utføres ihht sjekkpunkter under trinn","PmAction",null,"31974-2-","31974","2","14","1",null,null,"Nei",null,null,null,"Nei",{"$f":"DATE(2025,10,29)","v":"2025-10-29"},"KBSOL"]
[1077855,10,"Korrektivt vedlikehold","KB - Kristiansund lufth",2174603,"Fullført","+KB996=910.472",10,"ZCFT-10","KBIOL","Olsen, Inge Michael (KBIOL)","KB - Kristiansund lufth","KB200 - Kristiansund Drift","RM - Rullende materiell"," - ","UTSTYR","CA - Hovedadministrasjon","AVIRAMP-CONTINENTAL-R-AR187","UTSTYR","CA - Hovedadministrasjon","AVIRAMP-CONTINENTAL-R-AR187","AR 187","01 - Korrektivt vedlikehold"," - ","Utstyr startet ikke på tidligfly 19.09 kl 0630"," - ",null,null," - ",{"$nulls":6},"2022-09-19T12:54:02","2022-09-19T13:04:18",{"$nulls":5},"Nei","Nei"," - ",null,null," - "," - "," - ",null,null," - ",null," - "," - "," - ","Nei","Ja",null,null,null," - ","* - IFS Applications","SEO - Serviceordre","NOK",null," - "," - "," - "," - ",null,null,"Nei","Nei","Nei","Nei","Nei","Nei","Nei","Nei","Nei","Ja"," - "," - "," - ",100," - ",{"$nulls":4},"Utstyr ble forsøkt startet på plassen foran flyterminal, dette gikk ikke. Utsyr tauet opp til driftsbygg og inn i verksted. Feilsøkt på strøm til stoppsolenoid den var på 9.8 volt, så lav spenning vil ikke gjøre at solenoid trekker, diesel vil ikke komme inn i motor den vil ikke kunne starte. \r\nUtstyr satt på ladding etter en tid var spenning kommet opp på 14 volt motor startet uten problem. Luftfilter var dårlig nytt montert, dieselfilter byttet. System startet for kontroll av eventuelle feil lekkasjer ladding 14,2 volt med motor i gang.\r\nVGH informert om hva som bør gjøres i ettertid for å unngå minimalisere slike hendelser. Aviramp settes på ladding hver kveld, gass er plombert på max og det er det informert om at den skal stå. ",null,null,"Nei","Nei","Nei","KBIOL","2022-09-19T11:17:45","KBIOL","2022-09-19T12:53:57",{"$nulls":13},"Nei",null,null,null,"Nei",null,"KBIOL, KBREN"]
[1091603,10,"1 månedskontroll","KB - Kristiansund lufth",2188027,"Fullført","+KB996=910.472",1,"117;ZCFT-10","KBSOL","Olsen, Sindre Krane (KBSOL)","KB - Kristiansund lufth","KB200 - Kristiansund Drift","RM - Rullende materiell","3 - Til planlegging (<14d)","UTSTYR","CA - Hovedadministrasjon","AVIRAMP-CONTINENTAL-R-AR187","UTSTYR","CA - Hovedadministrasjon","AVIRAMP-CONTINENTAL-R-AR187","AR 187","02 - Forebyggende vedlikehold"," - ","Månedlig kontroll Utføres i henhold til standard jobb sjekkliste"," - ",null,null," - ","2022-10-10T07:00:00","2022-10-16T17:00:00",1,null,"2022-10-15T07:00:00","2022-10-15T08:00:00","2022-10-19T13:50:46","2022-10-19T13:51:53",{"$nulls":5},"Nei","Nei"," - ",null,null," - "," - "," - ",null,null,"02 - Normal drift","Hindrende"," - "," - "," - ","Nei","Ja",null,null,null," - ","* - IFS Applications","SEO - Serviceordre","NOK",null," - "," - "," - "," - ",null,null,"Nei","Nei","Nei","Nei","Nei","Nei","Nei","Nei","Nei","Ja"," - "," - "," - ",100," - ",{"$nulls":4},"Utført ihht sjekkliste, OK. Tørket over håndrails. Kontrollert lading.",null,null,"Nei","Ja","Nei","*","2022-10-06T04:00:09","IFSAPP","2022-10-06T04:00:09","KBIOL",null,1,"Månedlig kontroll utføres ihht sjekkpunkter under trinn","PmAction",null,"31974-2-","31974","2","15","1",null,null,"Nei",null,null,null,"Nei",{"$f":"DATE(2025,10,29)","v":"2025-10-29"},"KBSOL"]
[1094484,10,"Korrektivt vedlikehold","KB - Kristiansund lufth",2190861,"Fullført","+KB996=910.472",3.5,"117",null,"Olsen, Inge Michael (KBIOL)","KB - Kristiansund lufth","KB200 - Kristiansund Drift","RM - Rullende materiell"," - ","UTSTYR","CA - Hovedadministrasjon","AVIRAMP-CONTINENTAL-R-AR187","UTSTYR","CA - Hovedadministrasjon","AVIRAMP-CONTINENTAL-R-AR187","AR 187","01 - Korrektivt vedlikehold"," - ","Løs plastikkgardin på gangbane til aviramp"," - ",null,null," - ",{"$nulls":6},"2022-10-10T10:10:56","2022-10-10T10:19:00",{"$nulls":5},"Nei","Nei"," - ",null,null," - "," - "," - ",null,null," - ",null," - "," - "," - ","Nei","Ja",null,null,null," - ","* - IFS Applications","SEO - Serviceordre","NOK",null," - "," - "," - "," - ",null,null,"Nei","Nei","Nei","Nei","Nei","Nei","Nei","Nei","Nei","Ja"," - "," - "," - ",100," - ",{"$nulls":4},"Festestropp til gardin ble festet med nytt strikk hentet på Biltema.\r\nGangbane til aviramp var ikke festet riktig med kjetting den stod å slo, kjetting ble festet korrekt. Mail sendes WGH ang hvordan dette skal gjøres.",null,null,"Nei","Nei","Nei","KBIOL","2022-10-10T10:09:29","KBIOL","2022-10-10T10:10:50",{"$nulls":13},"Nei",null,null,null,"Nei",null,"KBIOL"]
[1112543,10,"1 månedskontroll","KB - Kristiansund lufth",2208459,"Fullført","+KB996=910.472",1,"117",null,"Olsen, Inge Michael (KBIOL)","KB - Kristiansund lufth","KB200 - Kristiansund Drift","RM - Rullende materiell","3 - Til planlegging (<14d)","UTSTYR","CA - Hovedadministrasjon","AVIRAMP-CONTINENTAL-R-AR187","UTSTYR","CA - Hovedadministrasjon","AVIRAMP-CONTINENTAL-R-AR187","AR 187","02 - Forebyggende vedlikehold"," - ","Månedlig kontroll Utføres i henhold til standard jobb sjekkliste"," - ",null,null," - ","2022-11-07T07:00:00","2022-11-13T17:00:00",1,null,"2022-11-12T07:00:00","2022-11-12T08:00:00","2022-11-14T17:07:34","2022-11-14T17:35:01",{"$nulls":5},"Nei","Nei"," - ",null,null," - "," - "," - ",null,null,"02 - Normal drift","Hindrende"," - "," - "," - ","Nei","Ja",null,null,null," - ","* - IFS Applications","SEO - Serviceordre","NOK",null," - "," - "," - "," - ",null,null,"Nei","Nei","Nei","Nei","Nei","Nei","Nei","Nei","Nei","Ja"," - "," - "," - ",100," - ",{"$nulls":4},"14.11.2022 17:34 - KBSOL\r\nUtført ihht sjekkliste, OK.\nFørt driftstimer, vasket over kontaktflater innvendig.",null,null,"Nei","Ja","Nei","*","2022-11-03T04:05:03","IFSAPP","2022-11-03T04:05:03","KBIOL",null,1,"Månedlig kontroll utføres ihht sjekkpunkter under trinn","PmAction",null,"31974-2-","31974","2","16","1",null,null,"Nei",null,"Sann",null,"Nei",{"$f":"DATE(2025,10,29)","v":"2025-10-29"},"KBSOL"]
[1133365,10,"1 månedskontroll","KB - Kristiansund lufth",2229029,"Fullført","+KB996=910.472",2,"117",null,"Olsen, Inge Michael (KBIOL)","KB - Kristiansund lufth","KB200 - Kristiansund Drift","RM - Rullende materiell","3 - Til planlegging (<14d)","UTSTYR","CA - Hovedadministrasjon","AVIRAMP-CONTINENTAL-R-AR187","UTSTYR","CA - Hovedadministrasjon","AVIRAMP-CONTINENTAL-R-AR187","AR 187","02 - Forebyggende vedlikehold"," - ","Månedlig kontroll Utføres i henhold til standard jobb sjekkliste"," - ",null,null," - ","2022-12-05T07:00:00","2022-12-11T17:00:00",1,null,"2022-12-10T07:00:00","2022-12-10T08:00:00","2022-12-06T14:18:08","2022-12-06T14:22:25",{"$nulls":5},"Nei","Nei"," - ",null,null," - "," - "," - ",null,null,"02 - Normal drift","Hindrende"," - "," - "," - ","Nei","Ja",null,null,null," - ","* - IFS Applications","SEO - Serviceordre","NOK",null," - "," - "," - "," - ",null,null,"Nei","Nei","Nei","Nei","Nei","Nei","Nei","Nei","Nei","Ja"," - "," - "," - ",100," - ",{"$nulls":4},"Funksjonstesten utstyr, lading kontrollert, dekk kontrollert, konstruksjon kontrollert ny olje på motor",null,null,"Nei","Ja","Nei","*","2022-12-01T04:01:55","IFSAPP","2022-12-01T04:01:55","KBIOL",null,1,"Månedlig kontroll utføres ihht sjekkpunkter under trinn","PmAction",null,"31974-2-","31974","2","17","1",null,null,"Nei",null,null,null,"Nei",{"$f":"DATE(2025,10,29)","v":"2025-10-29"},"KBIOL"]
[1136469,20,"Korrektiv vedlikehold","KB - Kristiansund lufth",2229029,"Fullført","+KB996=910.472",5,"117",null,"Olsen, Inge Michael (KBIOL)","KB - Kristiansund lufth","KB200 - Kristiansund Drift","RM - Rullende materiell"," - ",null,"CA - Hovedadministrasjon","AVIRAMP-CONTINENTAL-R-AR187","UTSTYR","CA - Hovedadministrasjon","AVIRAMP-CONTINENTAL-R-AR187","AR 187","01 - Korrektivt vedlikehold"," - ","Feil med strøm til stoppsolenoid"," - ",null,null," - ","2022-12-05T07:00:00","2022-12-11T17:00:00",{"$nulls":4},"2022-12-06T14:23:43","2022-12-06T14:27:08",{"$nulls":5},"Nei","Nei"," - ",null,null," - "," - "," - ",null,null,"02 - Normal drift","Hindrende"," - "," - "," - ","Nei","Ja",null,null,null," - ","* - IFS Applications","SEO - Serviceordre","NOK",null," - "," - "," - "," - ",null,null,"Nei","Nei","Nei","Nei","Nei","Nei","Nei","Nei","Nei","Ja"," - "," - "," - ",100," - ",{"$nulls":4},"Oppringt av WGH da utstyr ikke startet, den virket normalt på tidligflyet. Målt strøm til solenoid for stopp, der var det ikke strøm. Feilsøkt å funnet nødstoppbryter på håndtak aktivert. Kabler stripset og utstyr levert WGH for produksjon",null,null,"Nei","Ja","Nei","KBIOL","2022-12-06T14:22:13","KBIOL","2022-12-06T14:22:13","KBIOL",null,null,null,"JtTaskStep","KB","1133365-1720269-Kontrollere at motor starter og fungerer problemfritt.",{"$nulls":6},"Nei","Sann",null,null,"Nei",null,"KBIOL"]
[1155138,10,"1 månedskontroll","KB - Kristiansund lufth",2250560,"Fullført","+KB996=910.472",1,"117;ZCFT-10","KBSOL","Enoksen, Roar (KBREN)","KB - Kristiansund lufth","KB200 - Kristiansund Drift","RM - Rullende materiell","3 - Til planlegging (<14d)","UTSTYR","CA - Hovedadministrasjon","AVIRAMP-CONTINENTAL-R-AR187","UTSTYR","CA - Hovedadministrasjon","AVIRAMP-CONTINENTAL-R-AR187","AR 187","02 - Forebyggende vedlikehold"," - ","Månedlig kontroll Utføres i henhold til standard jobb sjekkliste"," - ",null,null," - ","2023-01-02T07:00:00","2023-01-08T17:00:00",1,null,"2023-01-07T07:00:00","2023-01-07T08:00:00","2023-01-09T18:38:50","2023-01-09T18:40:55",{"$nulls":5},"Nei","Nei"," - ",null,null," - "," - "," - ",null,null,"02 - Normal drift","Hindrende"," - "," - "," - ","Nei","Ja",null,null,null," - ","* - IFS Applications","SEO - Serviceordre","NOK",null," - "," - "," - "," - ",null,null,"Nei","Nei","Nei","Nei","Nei","Nei","Nei","Nei","Nei","Ja"," - "," - "," - ",100," - ",{"$nulls":4},"09.01.2023 18:40 - KBSOL\r\nUtført ihht sjekkliste, OK.\nTørket over kontaktflater.",null,null,"Nei","Ja","Nei","*","2022-12-29T04:15:24","IFSAPP","2022-12-29T04:15:24","KBIOL",null,1,"Månedlig kontroll utføres ihht sjekkpunkter under trinn","PmAction",null,"31974-2-","31974","2","18","1",null,null,"Nei",null,"Sann",null,"Nei",{"$f":"DATE(2025,10,29)","v":"2025-10-29"},"KBSOL"]
[1173833,10,"Korrektivt vedlikehold","KB - Kristiansund lufth",2268990,"Fullført","+KB996=910.472",1.5,"117;ZCFT-10;ZCFT-10","KBIOL;KBGFL","Olsen, Inge Michael (KBIOL)","KB - Kristiansund lufth","KB200 - Kristiansund Drift","RM - Rullende materiell"," - ","UTSTYR","CA - Hovedadministrasjon","AVIRAMP-CONTINENTAL-R-AR187","UTSTYR","CA - Hovedadministrasjon","AVIRAMP-CONTINENTAL-R-AR187","AR 187","01 - Korrektivt vedlikehold"," - ","WGH varslet om feil på vindmåler."," - ",null,null," - ",{"$nulls":6},"2023-01-24T20:54:16","2023-03-06T10:57:30",{"$nulls":5},"Nei","Nei"," - ",null,null," - "," - "," - ",null,null," - ",null," - "," - "," - ","Nei","Ja",null,null,null," - ","* - IFS Applications","SEO - Serviceordre","NOK",null," - "," - "," - "," - ",null,null,"Nei","Nei","Nei","Nei","Nei","Nei","Nei","Nei","Nei","Ja"," - "," - "," - ",100," - ",{"$nulls":4},"Inspiserte Aviramp på kvelden 24.01 etter beskjed om defekt vindmåler: \r\nKonkluderte med at WGH har demontert vindmåleren selv. Vindmåleren ligger fortsatt inne på WGHs kontor. La merke til at den manglet \"propellen\".\r\nSatte Inge som ressurs på AO.\r\n- KBSOL 24.01.23\r\n\r\nGunnar Flatøy har bestilt nye deler.\r\n- KBSOL 26.01.23",null,null,"Nei","Nei","Nei","KBSOL","2023-01-24T20:50:49","KBSOL","2023-01-24T20:51:15",{"$nulls":13},"Nei",null,null,null,"Nei",null,"KBGFL, KBSOL"]
[1175961,10,"1 månedskontroll","KB - Kristiansund lufth",2271086,"Fullført","+KB996=910.472",2,"117;ZCFT-10","KBSOL","Olsen, Inge Michael (KBIOL)","KB - Kristiansund lufth","KB200 - Kristiansund Drift","RM - Rullende materiell","3 - Til planlegging (<14d)","UTSTYR","CA - Hovedadministrasjon","AVIRAMP-CONTINENTAL-R-AR187","UTSTYR","CA - Hovedadministrasjon","AVIRAMP-CONTINENTAL-R-AR187","AR 187","02 - Forebyggende vedlikehold"," - ","Månedlig kontroll Utføres i henhold til standard jobb sjekkliste"," - ",null,null," - ","2023-01-30T07:00:00","2023-02-05T17:00:00",1,null,"2023-02-04T07:00:00","2023-02-04T08:00:00","2023-02-08T09:12:18","2023-02-08T10:29:09",{"$nulls":5},"Nei","Nei"," - ",null,null," - "," - "," - ",null,null,"02 - Normal drift","Hindrende"," - "," - "," - ","Nei","Ja",null,null,null," - ","* - IFS Applications","SEO - Serviceordre","NOK",null," - "," - "," - "," - ",null,null,"Nei","Nei","Nei","Nei","Nei","Nei","Nei","Nei","Nei","Ja"," - "," - "," - ",100," - ",{"$nulls":4},"Utført ihht sjekkliste, OK.\r\nOpplæring av Jesus, tørket ordentlig over innvendige flater.\r\nMålte spenning på batteri. Alt OK.\r\nMerket oss at kjettinger på gangbro/lem ikke var hektet på stramt nok. Kan bli trøbbel på dager med sterke vindkast.\r\nRegistrert timer på objekt.",null,null,"Nei","Ja","Nei","*","2023-01-26T04:35:22","IFSAPP","2023-01-26T04:35:22","KBIOL",null,1,"Månedlig kontroll utføres ihht sjekkpunkter under trinn","PmAction",null,"31974-2-","31974","2","19","1",null,null,"Nei",null,null,null,"Nei",{"$f":"DATE(2025,10,29)","v":"2025-10-29"},"KBSOL, TCJBA"]
[1189122,10,"Korrektivt vedlikehold","KB - Kristiansund lufth",2284110,"Fullført","+KB996=910.472",2,"117",null,"Olsen, Inge Michael (KBIOL)","KB - Kristiansund lufth","KB200 - Kristiansund Drift","RM - Rullende materiell"," - ","UTSTYR","CA - Hovedadministrasjon","AVIRAMP-CONTINENTAL-R-AR187","UTSTYR","CA - Hovedadministrasjon","AVIRAMP-CONTINENTAL-R-AR187","AR 187","01 - Korrektivt vedlikehold"," - ","Kabeltrommel til lading er skadet etter manglende fra kobling av strømkontakt ved flytting av maskin av WGH."," - ",null,null," - ",{"$nulls":6},"2023-02-09T10:02:20","2023-02-09T11:18:11",{"$nulls":5},"Nei","Nei"," - ",null,null," - "," - "," - ",null,null," - ",null," - "," - "," - ","Nei","Ja",null,null,null," - ","* - IFS Applications","SEO - Serviceordre","NOK",null," - "," - "," - "," - ",null,null,"Nei","Nei","Nei","Nei","Nei","Nei","Nei","Nei","Nei","Ja"," - "," - "," - ",100," - ",{"$nulls":4},"Kabeltrommel åpnet og funnet så skadet at ny måtte bestilles, R Skram levert ny trommel som ble montert.",null,null,"Nei","Nei","Nei","KBIOL","2023-02-09T10:00:40","KBIOL","2023-02-09T10:02:13",{"$nulls":13},"Nei",null,null,null,"Nei",null,"KBGFL, KBIOL"]
[1208066,10,"Korrektivt vedlikehold","KB - Kristiansund lufth",2302877,"Fullført","+KB996=910.472",1,"117;ZCFT-10","KBSOL","Nilsen, Roger (KBNRO)","KB - Kristiansund lufth","KB200 - Kristiansund Drift","RM - Rullende materiell"," - ","UTSTYR","CA - Hovedadministrasjon","AVIRAMP-CONTINENTAL-R-AR187","UTSTYR","CA - Hovedadministrasjon","AVIRAMP-CONTINENTAL-R-AR187","AR 187","01 - Korrektivt vedlikehold"," - ","Ødelagt splint på fjærhendel/lås for framskyving av skillevegg på fremre/øvre rampe inn mot flykropp."," - ",null,null," - ",{"$nulls":6},"2023-03-08T14:54:09","2023-03-08T14:54:10",{"$nulls":5},"Nei","Nei"," - ",null,null," - "," - "," - ",null,null," - ",null," - "," - "," - ","Nei","Ja",null,null,null," - ","* - IFS Applications","SEO - Serviceordre","NOK",null," - "," - "," - "," - ",null,null,"Nei","Nei","Nei","Nei","Nei","Nei","Nei","Nei","Nei","Ja"," - "," - "," - ",100," - ",{"$nulls":4},"Byttet hendel og splint, på høyre side av rampe med ansiktet vendt mot tenkt flykropp.",null,null,"Nei","Nei","Nei","KBSOL","2023-03-08T14:38:41","KBSOL","2023-03-08T14:43:53",{"$nulls":13},"Nei",null,null,null,"Nei",null,"KBSOL"]
[1220464,10,"1 månedskontroll","KB - Kristiansund lufth",2315145,"Fullført","+KB996=910.472",1,"117;ZCFT-10","KBSOL","Olsen, Inge Michael (KBIOL)","KB - Kristiansund lufth","KB200 - Kristiansund Drift","RM - Rullende materiell","3 - Til planlegging (<14d)","UTSTYR","CA - Hovedadministrasjon","AVIRAMP-CONTINENTAL-R-AR187","UTSTYR","CA - Hovedadministrasjon","AVIRAMP-CONTINENTAL-R-AR187","AR 187","02 - Forebyggende vedlikehold"," - ","Månedlig kontroll Utføres i henhold til standard jobb sjekkliste"," - ",null,null," - ","2023-03-27T07:00:00","2023-04-02T17:00:00",1,null,"2023-04-01T07:00:00","2023-04-01T08:00:00","2023-04-10T20:33:57","2023-04-10T20:37:04",{"$nulls":5},"Nei","Nei"," - ",null,null," - "," - "," - ",null,null,"02 - Normal drift","Hindrende"," - "," - "," - ","Nei","Ja",null,null,null," - ","* - IFS Applications","SEO - Serviceordre","NOK",null," - "," - "," - "," - ",null,null,"Nei","Nei","Nei","Nei","Nei","Nei","Nei","Nei","Nei","Ja"," - "," - "," - ",100," - ",{"$nulls":4},"10.04.2023 20:36 - KBSOL\r\nUtført ihht sjekkliste, Ok.\\nTørket over håndrails og vinduskarm.\\nTestkjørt støttebein og funksjonstestet alle nødstoppknapper.",null,null,"Nei","Ja","Nei","*","2023-03-23T04:48:22","IFSAPP","2023-03-23T04:48:22","KBIOL",null,1,"Månedlig kontroll utføres ihht sjekkpunkter under trinn","PmAction",null,"31974-2-","31974","2","21","1",null,null,"Nei",null,"Sann",null,"Nei",{"$f":"DATE(2025,10,29)","v":"2025-10-29"},"KBSOL"]
[1239915,10,"Korrektivt vedlikehold","KB - Kristiansund lufth",2334363,"Fullført","+KB996=910.472",6,"117",null,"Olsen, Inge Michael (KBIOL)","KB - Kristiansund lufth","KB200 - Kristiansund Drift","RM - Rullende materiell"," - ","UTSTYR","CA - Hovedadministrasjon","AVIRAMP-CONTINENTAL-R-AR187","UTSTYR","CA - Hovedadministrasjon","AVIRAMP-CONTINENTAL-R-AR187","AR 187","01 - Korrektivt vedlikehold"," - ","Utstyr startet ikke på tidligfly."," - ",null,null," - ","2023-04-13T07:00:00",{"$nulls":5},"2023-04-13T08:00:00","2023-05-05T12:50:44",{"$nulls":5},"Nei","Nei"," - ",null,null," - "," - "," - ",null,null," - ",null," - "," - "," - ","Nei","Ja",null,null,null," - ","* - IFS Applications","SEO - Serviceordre","NOK",null," - "," - "," - "," - ",null,null,"Nei","Nei","Nei","Nei","Nei","Nei","Nei","Nei","Nei","Ja"," - "," - "," - ",100," - ",{"$nulls":4},"Utstyr feilsøkt på plass til WGH. Nødstopp var aktivert dette fører til at dieselmotor får kutte tilførsel av diesel. Denne ble resatt, lite strøm på batteri lader leverer lite vedlikeholdsstrøm ekstern lader satt til å lade.\r\nMotor forsøkt startet etter noen timer med lading, det viste seg da at nødstyringshendler var aktivert i ettertid dette fører til at motor ikke klarer å trekke rundt på startmotor, mottrykk i forbindelse med at hydraulikkpumpe er trykksatt. Hendler ble satt tilbake til normaldrift, motroførsøkt startet uten problem. \r\nNy lader er bestilt leveres i morgen 15.04, ekstern lader benyttes inntil ny er montert WGH informert.",null,null,"Nei","Nei","Nei","KBIOL","2023-04-13T12:39:31","KBIOL","2023-04-13T12:40:07",{"$nulls":13},"Nei",null,null,null,"Nei",null,"KBIOL, KBREN"]
[1242609,10,"1 månedskontroll","KB - Kristiansund lufth",2336913,"Fullført","+KB996=910.472",1,"117",null,"Vikan, Asgeir (KBAVI)","KB - Kristiansund lufth","KB200 - Kristiansund Drift","RM - Rullende materiell","3 - Til planlegging (<14d)","UTSTYR","CA - Hovedadministrasjon","AVIRAMP-CONTINENTAL-R-AR187","UTSTYR","CA - Hovedadministrasjon","AVIRAMP-CONTINENTAL-R-AR187","AR 187","02 - Forebyggende vedlikehold"," - ","Månedlig kontroll Utføres i henhold til standard jobb sjekkliste"," - ",null,null," - ","2023-04-24T07:00:00","2023-04-30T17:00:00",1,null,"2023-04-29T07:00:00","2023-04-29T08:00:00","2023-05-14T19:24:04","2023-05-14T19:27:17",{"$nulls":5},"Nei","Nei"," - ",null,null," - "," - "," - ",null,null,"02 - Normal drift","Hindrende"," - "," - "," - ","Nei","Ja",null,null,null," - ","* - IFS Applications","SEO - Serviceordre","NOK",null," - "," - "," - "," - ",null,null,"Nei","Nei","Nei","Nei","Nei","Nei","Nei","Nei","Nei","Ja"," - "," - "," - ",100," - ",{"$nulls":4},"14.05.2023 19:26 - KBSOL\r\nUtført ihht sjekkliste, OK.\\nTørket av vinduskarmer på innside.\\nVurder å vaske/spyle gulv ved neste kontroll.\\nTørket av oljefilm fra motor. Vær obs på dette til neste kontroll.",null,null,"Nei","Ja","Nei","*","2023-04-20T04:18:55","IFSAPP","2023-04-20T04:18:55","KBIOL",null,1,"Månedlig kontroll utføres ihht sjekkpunkter under trinn","PmAction",null,"31974-2-","31974","2","22","1",null,null,"Nei",null,"Sann",null,"Nei",{"$f":"DATE(2025,10,29)","v":"2025-10-29"},"KBSOL"]
[1286478,10,"1 månedskontroll","KB - Kristiansund lufth",2380201,"Fullført","+KB996=910.472",1,"117",null,"Olsen, Sindre Krane (KBSOL)","KB - Kristiansund lufth","KB200 - Kristiansund Drift","RM - Rullende materiell","3 - Til planlegging (<14d)","UTSTYR","CA - Hovedadministrasjon","AVIRAMP-CONTINENTAL-R-AR187","UTSTYR","CA - Hovedadministrasjon","AVIRAMP-CONTINENTAL-R-AR187","AR 187","02 - Forebyggende vedlikehold"," - ","Månedlig kontroll Utføres i henhold til standard jobb sjekkliste"," - ",null,null," - ","2023-06-19T07:00:00","2023-06-25T17:00:00",1,null,"2023-06-24T07:00:00","2023-06-24T08:00:00","2023-06-25T22:43:17","2023-06-25T22:46:36",{"$nulls":5},"Nei","Nei"," - ",null,null," - "," - "," - ",null,null,"02 - Normal drift","Hindrende"," - "," - "," - ","Nei","Ja",null,null,null," - ","* - IFS Applications","SEO - Serviceordre","NOK",null," - "," - "," - "," - ",null,null,"Nei","Nei","Nei","Nei","Nei","Nei","Nei","Nei","Nei","Ja"," - "," - "," - ",100," - ",{"$nulls":4},"Utført ihht sjekkliste.\r\nKontrollert lading under gange. 13,9V på topp, OK. 12,4V før oppstart.\r\nOljefilm på motorblokk, så noe svetting foregår mellom månedskontrollene. Bør feilsøkes.\r\nTørket ordentlig over håndrails innvendig. Bør vurderes å vaske med høyttrykkspyler eller lignende, for å få fjernet overflødig sand og smuss.",null,null,"Ja","Ja","Nei","*","2023-06-15T04:21:59","IFSAPP","2023-06-15T04:21:59","KBIOL",null,1,"Månedlig kontroll utføres ihht sjekkpunkter under trinn","PmAction",null,"31974-2-","31974","2","24","1",null,null,"Nei",null,null,null,"Nei",{"$f":"DATE(2025,10,29)","v":"2025-10-29"},"KBSOL"]
[1301643,10,"Korrektivt vedlikehold","KB - Kristiansund lufth",2395136,"Fullført","+KB996=910.472",5,null,null,"Olsen, Inge Michael (KBIOL)","KB - Kristiansund lufth","KB200 - Kristiansund Drift","RM - Rullende materiell","2 - I løpet av dagen (<12t)","UTSTYR","CA - Hovedadministrasjon","AVIRAMP-CONTINENTAL-R-AR187","UTSTYR","CA - Hovedadministrasjon","AVIRAMP-CONTINENTAL-R-AR187","AR 187","01 - Korrektivt vedlikehold"," - ","Ødelagte motorfester - motor løsnet under bruk."," - ",null,null," - ",{"$nulls":6},"2023-07-05T13:20:57","2023-07-05T13:24:32",{"$nulls":5},"Nei","Nei"," - ",null,null," - "," - "," - ",null,null,"02 - Normal drift","Hindrende"," - "," - "," - ","Nei","Ja",null,null,null," - ","* - IFS Applications","SEO - Serviceordre","NOK",null," - "," - "," - "," - ",null,null,"Nei","Nei","Nei","Nei","Nei","Nei","Nei","Nei","Nei","Ja"," - "," - "," - ",100," - ",{"$nulls":4},"05.07.2023 13:23 - KBSOL\r\\nEtter å ha demontert de ødelagte motorfestene, kjørte Roger H til Biltema for å kjøpe nye. Vedlagt ligger bilde av motorfestet som ble kjøpt inn.\\n\\n4 stk ble skiftet, 1 stk ligger på lager. Kjøpte 6stk, men den ene nye måtte erstattes da bolten gikk av under montering.\\n\\nAvvik skrevet av Frank Stokke. Hendelsen bidrar til økt oppmerksomhet rundt dette under det periodiske vedlikeholdet.\r\n05.07.2023 13:24 - KBSOL\r\nInnkjøp",null,null,"Nei","Ja","Nei","KBSOL","2023-07-05T13:20:45","KBSOL","2023-07-05T13:20:45",{"$nulls":13},"Nei","Sann","Sann","Sann","Nei",null,"KBRHE, KBSOL"]
[1308044,10,"1 månedskontroll","KB - Kristiansund lufth",2401439,"Fullført","+KB996=910.472",1,"117;ZCFT-10","KBSOL","Olsen, Inge Michael (KBIOL)","KB - Kristiansund lufth","KB200 - Kristiansund Drift","RM - Rullende materiell","3 - Til planlegging (<14d)","UTSTYR","CA - Hovedadministrasjon","AVIRAMP-CONTINENTAL-R-AR187","UTSTYR","CA - Hovedadministrasjon","AVIRAMP-CONTINENTAL-R-AR187","AR 187","02 - Forebyggende vedlikehold"," - ","Månedlig kontroll Utføres i henhold til standard jobb sjekkliste"," - ",null,null," - ","2023-07-17T07:00:00","2023-07-23T17:00:00",1,null,"2023-07-22T07:00:00","2023-07-22T08:00:00","2023-07-26T20:00:23","2023-07-26T20:03:47",{"$nulls":5},"Nei","Nei"," - ",null,null," - "," - "," - ",null,null,"02 - Normal drift","Hindrende"," - "," - "," - ","Nei","Ja",null,null,null," - ","* - IFS Applications","SEO - Serviceordre","NOK",null," - "," - "," - "," - ",null,null,"Nei","Nei","Nei","Nei","Nei","Nei","Nei","Nei","Nei","Ja"," - "," - "," - ",100," - ",{"$nulls":4},"Kontroll ihht sjekkliste, OK.\r\nTørket over håndrails. \r\nOk nivå på motorolje. Fortsatt tegn til svetting.\r\nMotorfester OK.\r\nFunksjonstest av nødstoppknapper, OK.",null,null,"Nei","Ja","Nei","*","2023-07-13T04:29:00","IFSAPP","2023-07-13T04:29:00","KBIOL",null,1,"Månedlig kontroll utføres ihht sjekkpunkter under trinn","PmAction",null,"31974-2-","31974","2","25","1",null,null,"Nei",null,null,null,"Nei",{"$f":"DATE(2025,10,29)","v":"2025-10-29"},"KBSOL"]
[1328188,10,"1 månedskontroll","KB - Kristiansund lufth",2421281,"Fullført","+KB996=910.472",1,"117;ZCFT-10","KBSOL","Olsen, Inge Michael (KBIOL)","KB - Kristiansund lufth","KB200 - Kristiansund Drift","RM - Rullende materiell","3 - Til planlegging (<14d)","UTSTYR","CA - Hovedadministrasjon","AVIRAMP-CONTINENTAL-R-AR187","UTSTYR","CA - Hovedadministrasjon","AVIRAMP-CONTINENTAL-R-AR187","AR 187","02 - Forebyggende vedlikehold"," - ","Månedlig kontroll Utføres i henhold til standard jobb sjekkliste"," - ",null,null," - ","2023-08-14T07:00:00","2023-08-20T17:00:00",1,null,"2023-08-19T07:00:00","2023-08-19T08:00:00","2023-08-24T17:17:39","2023-08-24T17:57:01",{"$nulls":5},"Nei","Nei"," - ",null,null," - "," - "," - ",null,null,"02 - Normal drift","Hindrende"," - "," - "," - ","Nei","Ja",null,null,null," - ","* - IFS Applications","SEO - Serviceordre","NOK",null," - "," - "," - "," - ",null,null,"Nei","Nei","Nei","Nei","Nei","Nei","Nei","Nei","Nei","Ja"," - "," - "," - ",100," - ",{"$nulls":4},"Utført ihht sjekkliste, OK.\r\n\r\nIngen feil funnet. Vurderer å frakte den opp til driftsbygg neste arbeidshelg for å vaske ordentlig innvendig.",null,null,"Nei","Ja","Nei","*","2023-08-10T04:30:10","IFSAPP","2023-08-10T04:30:10","KBIOL",null,1,"Månedlig kontroll utføres ihht sjekkpunkter under trinn","PmAction",null,"31974-2-","31974","2","26","1",null,null,"Nei",null,null,null,"Nei",{"$f":"DATE(2025,10,29)","v":"2025-10-29"},"KBSOL"]
[1348908,10,"1 månedskontroll","KB - Kristiansund lufth",2441683,"Fullført","+KB996=910.472",1,"117;ZCFT-10","KBSOL","Olsen, Inge Michael (KBIOL)","KB - Kristiansund lufth","KB200 - Kristiansund Drift","RM - Rullende materiell","3 - Til planlegging (<14d)","UTSTYR","CA - Hovedadministrasjon","AVIRAMP-CONTINENTAL-R-AR187","UTSTYR","CA - Hovedadministrasjon","AVIRAMP-CONTINENTAL-R-AR187","AR 187","02 - Forebyggende vedlikehold"," - ","Månedlig kontroll Utføres i henhold til standard jobb sjekkliste"," - ",null,null," - ","2023-09-11T07:00:00","2023-09-17T17:00:00",1,null,"2023-09-16T07:00:00","2023-09-16T08:00:00","2023-09-15T13:26:12","2023-09-15T13:44:05",{"$nulls":5},"Nei","Nei"," - ",null,null," - "," - "," - ",null,null,"02 - Normal drift","Hindrende"," - "," - "," - ","Nei","Ja",null,null,null," - ","* - IFS Applications","SEO - Serviceordre","NOK",null," - "," - "," - "," - ",null,null,"Nei","Nei","Nei","Nei","Nei","Nei","Nei","Nei","Nei","Ja"," - "," - "," - ",100," - ",{"$nulls":4},"Utført iht. sjekkliste, OK.",null,null,"Nei","Ja","Nei","*","2023-09-07T04:10:49","IFSAPP","2023-09-07T04:10:49","KBIOL",null,1,"Månedlig kontroll utføres ihht sjekkpunkter under trinn","PmAction",null,"31974-2-","31974","2","27","1",null,null,"Nei",null,null,null,"Nei",{"$f":"DATE(2025,10,29)","v":"2025-10-29"},"KBSOL"]
[1369181,10,"Korrektivt vedlikehold","KB - Kristiansund lufth",2461689,"Fullført","+KB996=910.472",28.5,null,null,"Olsen, Inge Michael (KBIOL)","KB - Kristiansund lufth","KB200 - Kristiansund Drift","RM - Rullende materiell"," - ","UTSTYR","CA - Hovedadministrasjon","AVIRAMP-CONTINENTAL-R-AR187","UTSTYR","CA - Hovedadministrasjon","AVIRAMP-CONTINENTAL-R-AR187","AR 187","01 - Korrektivt vedlikehold"," - ","Startproblemer"," - ",null,null," - ","2023-10-04T14:00:00","2023-10-06T21:00:00",{"$nulls":4},"2023-10-04T15:00:00","2023-10-09T13:52:53",{"$nulls":5},"Nei","Nei"," - ",null,null," - "," - "," - ",null,null," - ",null," - "," - "," - ","Nei","Ja",null,null,null," - ","* - IFS Applications","SEO - Serviceordre","NOK",null," - "," - "," - "," - ",null,null,"Nei","Nei","Nei","Nei","Nei","Nei","Nei","Nei","Nei","Ja"," - "," - "," - ",100," - ",{"$nulls":4},"04.10.2023 Feilsøkt startproblemer. Bytta batteri, men starta fremdeles ikke. Slepa den opp og inn. Da starta djevelen. Inge har fått info.  JE\r\n05.10  Laget ny gardin ved sving toppetasje , og lakkert område  der nedkant på gardin treffer , og skraper opp. Laget brakket for batterilader , og motert den. OHE\r\n05.10 Videre feilsøking utført motor startet lett da den ble prøvd. \r\n05.10 Lys på gangbaner  ble koblet over bryter i front dette for å gjøre det letter for brukere æ betjene denne funksjonen bryter er merket lys. Huv til motor ble fjernet dette for å unngå nedsoting av motor med tilhørende detaljer samt å oppnå varme på hydraulikktank med eksosen slik leverenadør har tenkt.\r\nLader med tilhørende kabler ble montert over styre skap timeteller, kabler ble lagt om og stripset ny hovedstrømsbryter og polsko ble montert.\r\nNye filter luft, diesel og rengjøring av oljefilter med bytte av olje ble utført. på 1300.07 timer.\r\nNy plastskinne på håndrev på bro til gangvei ble byttet.\r\nNye hjullager høyre side fram bytte",null,null,"Nei","Nei","Nei","KBJEA","2023-10-04T15:23:35","KBJEA","2023-10-04T15:24:47",{"$nulls":13},"Nei",null,null,null,"Nei",null,"KBFRS, KBIOL, KBJEA, KBOEI"]
[1370832,10,"1 månedskontroll","KB - Kristiansund lufth",2463325,"Fullført","+KB996=910.472",0.5,"117",null,"Olsen, Inge Michael (KBIOL)","KB - Kristiansund lufth","KB200 - Kristiansund Drift","RM - Rullende materiell","3 - Til planlegging (<14d)","UTSTYR","CA - Hovedadministrasjon","AVIRAMP-CONTINENTAL-R-AR187","UTSTYR","CA - Hovedadministrasjon","AVIRAMP-CONTINENTAL-R-AR187","AR 187","02 - Forebyggende vedlikehold"," - ","Månedlig kontroll Utføres i henhold til standard jobb sjekkliste"," - ",null,null," - ","2023-10-09T07:00:00","2023-10-15T17:00:00",1,null,"2023-10-14T07:00:00","2023-10-14T08:00:00","2023-10-10T14:26:16","2023-10-10T14:29:57",{"$nulls":5},"Nei","Nei"," - ",null,null," - "," - "," - ",null,null,"02 - Normal drift","Hindrende"," - "," - "," - ","Nei","Ja",null,null,null," - ","* - IFS Applications","SEO - Serviceordre","NOK",null," - "," - "," - "," - ",null,null,"Nei","Nei","Nei","Nei","Nei","Nei","Nei","Nei","Nei","Ja"," - "," - "," - ",100," - ",{"$nulls":4},"Utsyr tatt til verksted for reparasjon, oljeskift, dieselfilter og luftfilter utført. Ny plast på gangbro montert, ny plast gardin montert. Rengjort gangbaner. Lading målt til 14.01 volt etter batteribytte",null,null,"Nei","Ja","Nei","*","2023-10-05T04:28:13","IFSAPP","2023-10-05T04:28:13","KBIOL",null,1,"Månedlig kontroll utføres ihht sjekkpunkter under trinn","PmAction",null,"31974-2-","31974","2","28","1",null,null,"Nei",null,null,null,"Nei",{"$f":"DATE(2025,10,29)","v":"2025-10-29"},"KBIOL"]
[1389864,10,"Korrektivt vedlikehold","KB - Kristiansund lufth",2482166,"Fullført","+KB996=910.472",2.5,"117",null,"Olsen, Inge Michael (KBIOL)","KB - Kristiansund lufth","KB200 - Kristiansund Drift","RM - Rullende materiell"," - ","UTSTYR","CA - Hovedadministrasjon","AVIRAMP-CONTINENTAL-R-AR187","UTSTYR","CA - Hovedadministrasjon","AVIRAMP-CONTINENTAL-R-AR187","AR 187","01 - Korrektivt vedlikehold"," - ","Plate til anslag mot fly står fat på gangbro."," - ",null,null," - ",{"$nulls":6},"2023-10-26T12:53:48","2023-10-30T17:20:03",{"$nulls":5},"Nei","Nei"," - ",null,null," - "," - "," - ",null,null," - ",null," - "," - "," - ","Nei","Ja",null,null,null," - ","* - IFS Applications","SEO - Serviceordre","NOK",null," - "," - "," - "," - ",null,null,"Nei","Nei","Nei","Nei","Nei","Nei","Nei","Nei","Nei","Ja"," - "," - "," - ",100," - ",{"$nulls":4},"Plate demontert og rengjort for fett, smurt opp med PTE fett, den fungerer.",null,null,"Nei","Nei","Nei","KBIOL","2023-10-26T12:51:32","KBIOL","2023-10-26T12:53:37",{"$nulls":13},"Nei",null,null,null,"Nei",null,"KBIOL"]
[1390760,10,"Korrektivt vedlikehold","KB - Kristiansund lufth",2483047,"Fullført","+KB996=910.472",52,"117;ZCFT-10","KBIOL","Olsen, Inge Michael (KBIOL)","KB - Kristiansund lufth","KB200 - Kristiansund Drift","RM - Rullende materiell"," - ","UTSTYR","CA - Hovedadministrasjon","AVIRAMP-CONTINENTAL-R-AR187","UTSTYR","CA - Hovedadministrasjon","AVIRAMP-CONTINENTAL-R-AR187","AR 187","01 - Korrektivt vedlikehold"," - ","Framdrift går treigt, feil søk årsak."," - ",null,null," - ",{"$nulls":6},"2023-10-30T17:18:06","2024-06-27T08:00:58",{"$nulls":5},"Nei","Nei"," - ",null,null," - "," - "," - ",null,null," - ",null," - "," - "," - ","Nei","Ja",null,null,null," - ","* - IFS Applications","SEO - Serviceordre","NOK",null," - "," - "," - "," - ",null,null,"Nei","Nei","Nei","Nei","Nei","Nei","Nei","Nei","Nei","Ja"," - "," - "," - ",100," - ",{"$nulls":4},"Aviramp hentet opp fra WGH, klargjort med testuttak for kontroll av trykk i hydraulikksystem. Trykk til brems målt til 150 bar, trykk til hydraulikkmotor mål til 154 bar når maskin belastes kjøres mot en kloss. Videre vurdering på tiltak må vurderes.\r\nHydraulikkolje ble tappet, returfilter ut montert dette har stått i maskin siden den var levert i følge dato, lokk til hydraulikktank avmontert nede i tank ble det oppdaget en suge sil montert på slange til pumpe. filter ut montert fro rengjøring, returfilter ble bestilt fra Lekang 6.11noe krevende å finne riktig type da det ikke var opplysninger om dette i speken på maskin. Tank rengjort før 13 liter ny hydraulikkolje ble fylt inntil nytt returfilter er levert vil utstyr bli kjørt uten filter.\r\n08.11.23 Feilsøkt på trykk i system trykk er målt til 160 bar på motorer, pumpe leverer opp mot 200 bar. Wist med E Eng er kontaktet, mail sendes E Eng der opplysninger om anlegget system beskriver med utstyr som er montert av leverandør, da system ikke er i henhold til skjema. Utstyr kan brukes.\r\n10.11.2023 Montert vindmåler og kjørt ned til CP igjen. JE\r\n10.11.2023 Feisøkte på dieselproblem , filter tømmer seg etter en 20 min drift, sil montert i tank er fjernet filter holde på væskenivå, nytt filter er bestilt leveres mandag 13.11. Utsyr satt i drift inntil videre.\r\n06.03.2024 Utsyr fraktet til driftsbygg for en verifisering av delebestillingen. Festeskruer til hydraulikkmotor h.s ut montert for å prøve å demontere motor fra bremsedel. den satt fast videre feilsøking på hvordan en demonterer denne må utføres.Nye motorer ble bestilt fra Egil Eng 07.03 via Wist leveres uke 11 for montering.\r\n\r\nLES TEKST I VEDLEGG FOR KOMPLETT HISTORIKK FOR DENNE ARBEIDSOPPGAVEN.",null,null,"Nei","Nei","Nei","KBIOL","2023-10-30T17:17:15","KBIOL","2023-10-30T17:17:58",{"$nulls":4},"JtTask","KB","1389864-Korrektivt vedlikehold","2482166","1389864",{"$nulls":4},"Nei",null,null,null,"Nei",null,"KBIOL, KBJEA"]
[1400411,20,"Korrektiv vedlikehold","KB - Kristiansund lufth",2484856,"Fullført","+KB996=910.472",4.5,"117;ZCFT-10","KBIOL","Olsen, Inge Michael (KBIOL)","KB - Kristiansund lufth","KB200 - Kristiansund Drift","RM - Rullende materiell"," - ",null,"CA - Hovedadministrasjon","AVIRAMP-CONTINENTAL-R-AR187","UTSTYR","CA - Hovedadministrasjon","AVIRAMP-CONTINENTAL-R-AR187","AR 187","01 - Korrektivt vedlikehold"," - ","KBIOL 09-11-2023 defekt drivhjul høyre"," - ",null,null," - ","2023-11-06T07:00:00","2023-11-12T17:00:00",{"$nulls":4},"2023-11-09T13:55:57","2023-11-09T14:00:23",{"$nulls":5},"Nei","Nei"," - ",null,null," - "," - "," - ",null,null,"02 - Normal drift","Hindrende"," - "," - "," - ","Nei","Ja",null,null,null," - ","* - IFS Applications","SEO - Serviceordre","NOK",null," - "," - "," - "," - ",null,null,"Nei","Nei","Nei","Nei","Nei","Nei","Nei","Nei","Nei","Ja"," - "," - "," - ",100," - ",{"$nulls":4},"Drivhjul høyre havarerte under transport av utstyr fra CP til driftsbygg, utsyr måtte fjernes med hjelp av hjullaster og truck opp til driftsbygg. Reservehjul måtte hentes i Molde  Åre.\r\nDefekt hjul ble byttet, reservehjul levert Auto Elektro for omlegging en uke leveringstid.",null,null,"Ja","Ja","Nei","KBIOL","2023-11-09T13:55:41","KBIOL","2023-11-09T13:55:41","KBIOL",null,null,null,"JtTaskStep","KB","1392601-2845696-Kontrollere at alle hjul er hele og skadefrie.",{"$nulls":6},"Nei","Sann",null,null,"Nei",null,"KBIOL"]
[1411953,10,"Korrektivt vedlikehold","KB - Kristiansund lufth",2503925,"Fullført","+KB996=910.472",10,"117;ZCFT-10","KBIOL","Olsen, Inge Michael (KBIOL)","KB - Kristiansund lufth","KB200 - Kristiansund Drift","RM - Rullende materiell"," - ","UTSTYR","CA - Hovedadministrasjon","AVIRAMP-CONTINENTAL-R-AR187","UTSTYR","CA - Hovedadministrasjon","AVIRAMP-CONTINENTAL-R-AR187","AR 187","01 - Korrektivt vedlikehold"," - ","Bærehjul rundtom oppgraderes til luft fylte"," - ",null,null," - ",{"$nulls":6},"2023-11-24T14:29:57","2023-12-12T13:18:29",{"$nulls":5},"Nei","Nei"," - ",null,null," - "," - "," - ",null,null," - ",null," - "," - "," - ","Nei","Ja",null,null,null," - ","* - IFS Applications","SEO - Serviceordre","NOK",null," - "," - "," - "," - ",null,null,"Nei","Nei","Nei","Nei","Nei","Nei","Nei","Nei","Nei","Ja"," - "," - "," - ",100," - ",{"$nulls":4},"Nye komplette hjul montert, noe ombygging da nav var ulike gamle, indre lage ring fra gamle lager ble montert for riktig avstand hjul fylt med 6,5 bar trykk.",null,null,"Nei","Nei","Nei","KBIOL","2023-11-24T14:28:42","KBIOL","2023-11-24T14:29:28",{"$nulls":4},"JtTask","KB","1390760-Korrektivt vedlikehold","2483047","1390760",{"$nulls":4},"Nei",null,null,null,"Nei",null,"KBBFA, KBIOL"]
[1412250,10,"Korrektivt vedlikehold","KB - Kristiansund lufth",2504218,"Fullført","+KB996=910.472",1,null,null,"Olsen, Inge Michael (KBIOL)","KB - Kristiansund lufth","KB200 - Kristiansund Drift","RM - Rullende materiell","2 - I løpet av dagen (<12t)","UTSTYR","CA - Hovedadministrasjon","AVIRAMP-CONTINENTAL-R-AR187","UTSTYR","CA - Hovedadministrasjon","AVIRAMP-CONTINENTAL-R-AR187","AR 187","01 - Korrektivt vedlikehold"," - ","Frossen tenningslås."," - ",null,null," - ",{"$nulls":6},"2023-11-26T21:20:03","2023-11-26T21:20:14",{"$nulls":5},"Nei","Nei"," - ",null,null," - "," - "," - ",null,null,"02 - Normal drift","Hindrende"," - "," - "," - ","Nei","Ja",null,null,null," - ","* - IFS Applications","SEO - Serviceordre","NOK",null," - "," - "," - "," - ",null,null,"Nei","Nei","Nei","Nei","Nei","Nei","Nei","Nei","Nei","Ja"," - "," - "," - ",100," - ",{"$nulls":4},"26.11.2023 21:20 - KBSOL\r\nWGH meldte om at de ikke fikk start på Avirampen, da nøkkelen ikke kunne vris rundt i tenningen.\\nTok med varmluftspistol og en skjøteledning, og da fikk jeg varmet opp tenningslåsen nok til at den kunne brukes igjen. Stuer ble informert om saken etter at jobben ble utført. De ble bedt om å smøre tenningslåsen ved neste anledning.",null,null,"Nei","Ja","Nei","KBSOL","2023-11-26T21:17:42","KBSOL","2023-11-26T21:17:42",{"$nulls":13},"Nei","Sann","Sann","Sann","Nei",null,"KBSOL"]
[1414328,10,"1 månedskontroll","KB - Kristiansund lufth",2506227,"Fullført","+KB996=910.472",4,"117;ZCFT-10","KBSOL","Olsen, Inge Michael (KBIOL)","KB - Kristiansund lufth","KB200 - Kristiansund Drift","RM - Rullende materiell","3 - Til planlegging (<14d)","UTSTYR","CA - Hovedadministrasjon","AVIRAMP-CONTINENTAL-R-AR187","UTSTYR","CA - Hovedadministrasjon","AVIRAMP-CONTINENTAL-R-AR187","AR 187","02 - Forebyggende vedlikehold"," - ","Månedlig kontroll Utføres i henhold til standard jobb sjekkliste"," - ",null,null," - ","2023-12-04T07:00:00","2023-12-10T17:00:00",1,null,"2023-12-09T07:00:00","2023-12-09T08:00:00","2023-12-12T13:35:35","2023-12-12T13:35:41",{"$nulls":5},"Nei","Nei"," - ",null,null," - "," - "," - ",null,null,"02 - Normal drift","Hindrende"," - "," - "," - ","Nei","Ja",null,null,null," - ","* - IFS Applications","SEO - Serviceordre","NOK",null," - "," - "," - "," - ",null,null,"Nei","Nei","Nei","Nei","Nei","Nei","Nei","Nei","Nei","Ja"," - "," - "," - ",100," - ",{"$nulls":4},"Oljeskift med filter utført 12.12.23 BEF.IO på 1326 timer\r\nLuftfilter byttet.\r\nDieselfilter i tank byttet",null,null,"Nei","Ja","Nei","*","2023-11-30T03:07:12","IFSAPP","2023-11-30T03:07:12","KBIOL",null,1,"Månedlig kontroll utføres ihht sjekkpunkter under trinn","PmAction",null,"31974-2-","31974","2","30","1",null,null,"Nei",null,null,null,"Nei",{"$f":"DATE(2025,10,29)","v":"2025-10-29"},"KBBFA, KBIOL"]
[1458663,10,"1 månedskontroll","KB - Kristiansund lufth",2549459,"Fullført","+KB996=910.472",1,"117",null,"Olsen, Inge Michael (KBIOL)","KB - Kristiansund lufth","KB200 - Kristiansund Drift","RM - Rullende materiell","3 - Til planlegging (<14d)","UTSTYR","CA - Hovedadministrasjon","AVIRAMP-CONTINENTAL-R-AR187","UTSTYR","CA - Hovedadministrasjon","AVIRAMP-CONTINENTAL-R-AR187","AR 187","02 - Forebyggende vedlikehold"," - ","Månedlig kontroll Utføres i henhold til standard jobb sjekkliste"," - ",null,null," - ","2024-01-29T07:00:00","2024-02-04T17:00:00",1,null,"2024-02-03T07:00:00","2024-02-03T08:00:00","2024-03-01T12:08:52","2024-03-01T12:13:51",{"$nulls":5},"Nei","Nei"," - ",null,null," - "," - "," - ",null,null,"02 - Normal drift","Hindrende"," - "," - "," - ","Nei","Ja",null,null,null," - ","* - IFS Applications","SEO - Serviceordre","NOK",null," - "," - "," - "," - ",null,null,"Nei","Nei","Nei","Nei","Nei","Nei","Nei","Nei","Nei","Ja"," - "," - "," - ",100," - ",{"$nulls":4},"Motor startet ladding kontrollert 14.05 volt ok olje nivå motor kontrollert på max. Kjørt framdrift og hev senk av labber dette fungerte.\r\nBolter til felger kontrolltregt de var faste.",null,null,"Nei","Ja","Nei","*","2024-01-25T03:10:17","IFSAPP","2024-01-25T03:10:17","KBIOL",null,1,"Månedlig kontroll utføres ihht sjekkpunkter under trinn","PmAction",null,"31974-2-","31974","2","32","1",null,null,"Nei",null,null,null,"Nei",{"$f":"DATE(2025,10,29)","v":"2025-10-29"},"KBIOL"]
[1472787,10,"Korrektivt vedlikehold","KB - Kristiansund lufth",2563395,"Fullført","+KB996=910.472",2,"117",null,"Olsen, Inge Michael (KBIOL)","KB - Kristiansund lufth","KB200 - Kristiansund Drift","RM - Rullende materiell"," - ","UTSTYR","CA - Hovedadministrasjon","AVIRAMP-CONTINENTAL-R-AR187","UTSTYR","CA - Hovedadministrasjon","AVIRAMP-CONTINENTAL-R-AR187","AR 187","01 - Korrektivt vedlikehold"," - ","Låsehendel til venstre skyveluke oppe på gangbro inn mot fly er knekt, ny må lages i verksted"," - ",null,null," - ","2024-02-08T08:04:00",{"$nulls":5},"2024-02-08T08:00:00","2024-02-09T14:24:02",{"$nulls":5},"Nei","Nei"," - ",null,null," - "," - "," - ",null,null," - ",null," - "," - "," - ","Nei","Ja",null,null,null," - ","* - IFS Applications","SEO - Serviceordre","NOK",null," - "," - "," - "," - ",null,null,"Nei","Nei","Nei","Nei","Nei","Nei","Nei","Nei","Nei","Ja"," - "," - "," - ",100," - ",{"$nulls":4},"Hendel låsebolt er knekt, ny 12mm aksling ble hentet EA Smith. Ny bolt med 4 mm hul laget og montert 09.02 etter avtale med WGH.",null,null,"Nei","Nei","Nei","KBIOL","2024-02-09T14:19:01","KBIOL","2024-02-09T14:20:05",{"$nulls":13},"Nei",null,null,null,"Nei",null,"KBIOL"]
[1473885,10,"Korrektivt vedlikehold","KB - Kristiansund lufth",2564460,"Fullført","+KB996=910.472",13.5,"117",null,"Olsen, Inge Michael (KBIOL)","KB - Kristiansund lufth","KB200 - Kristiansund Drift","RM - Rullende materiell"," - ","UTSTYR","CA - Hovedadministrasjon","AVIRAMP-CONTINENTAL-R-AR187","UTSTYR","CA - Hovedadministrasjon","AVIRAMP-CONTINENTAL-R-AR187","AR 187","01 - Korrektivt vedlikehold"," - ","Venstre drivhjul punktert."," - ",null,null," - ","2024-02-14T08:04:00",{"$nulls":5},"2024-02-14T07:00:00","2024-02-16T14:17:25",{"$nulls":5},"Nei","Nei"," - ",null,null," - "," - "," - ",null,null," - ",null," - "," - "," - ","Nei","Ja",null,null,null," - ","* - IFS Applications","SEO - Serviceordre","NOK",null," - "," - "," - "," - ",null,null,"Nei","Nei","Nei","Nei","Nei","Nei","Nei","Nei","Nei","Ja"," - "," - "," - ",100," - ",{"$nulls":4},"Høyre drivhjul tomt for luft. Reservehjul montert med nye lager. Felg som ble demontert er levert Tig Mek for retting av flens, da den var skjev. Nye hul lagt på gamle felger som ble sandblåst og lakkert, nye lager montert.",null,null,"Nei","Nei","Nei","KBIOL","2024-02-14T13:48:43","KBIOL","2024-02-14T13:49:50",{"$nulls":13},"Nei",null,null,null,"Nei",null,"KBFRS, KBIOL"]
[1480991,10,"1 månedskontroll","KB - Kristiansund lufth",2571484,"Fullført","+KB996=910.472",1.25,"117",null,"Farstad, Bjørn Egil Nilsen (KBBFA)","KB - Kristiansund lufth","KB200 - Kristiansund Drift","RM - Rullende materiell","3 - Til planlegging (<14d)","UTSTYR","CA - Hovedadministrasjon","AVIRAMP-CONTINENTAL-R-AR187","UTSTYR","CA - Hovedadministrasjon","AVIRAMP-CONTINENTAL-R-AR187","AR 187","02 - Forebyggende vedlikehold"," - ","Månedlig kontroll Utføres i henhold til standard jobb sjekkliste"," - ",null,null," - ","2024-02-26T07:00:00","2024-03-03T17:00:00",1,null,"2024-03-02T07:00:00","2024-03-02T08:00:00","2024-03-20T08:35:04","2024-03-20T08:35:05",{"$nulls":5},"Nei","Nei"," - ",null,null," - "," - "," - ",null,null,"02 - Normal drift","Hindrende"," - "," - "," - ","Nei","Ja",null,null,null," - ","* - IFS Applications","SEO - Serviceordre","NOK",null," - "," - "," - "," - ",null,null,"Nei","Nei","Nei","Nei","Nei","Nei","Nei","Nei","Nei","Ja"," - "," - "," - ",100," - ",{"$nulls":4},"Utført ihht sjekkliste.",null,null,"Nei","Ja","Nei","*","2024-02-22T03:08:49","IFSAPP","2024-02-22T03:08:49","KBIOL",null,1,"Månedlig kontroll utføres ihht sjekkpunkter under trinn","PmAction",null,"31974-2-","31974","2","33","1",null,null,"Nei",null,null,null,"Nei",{"$f":"DATE(2025,10,29)","v":"2025-10-29"},"KBBFA"]
[1502588,10,"1 månedskontroll","KB - Kristiansund lufth",2592678,"Fullført","+KB996=910.472",2,"117",null,"Farstad, Bjørn Egil Nilsen (KBBFA)","KB - Kristiansund lufth","KB200 - Kristiansund Drift","RM - Rullende materiell","3 - Til planlegging (<14d)","UTSTYR","CA - Hovedadministrasjon","AVIRAMP-CONTINENTAL-R-AR187","UTSTYR","CA - Hovedadministrasjon","AVIRAMP-CONTINENTAL-R-AR187","AR 187","02 - Forebyggende vedlikehold"," - ","Månedlig kontroll Utføres i henhold til standard jobb sjekkliste"," - ",null,null," - ","2024-03-25T07:00:00","2024-03-31T17:00:00",1,null,"2024-03-30T07:00:00","2024-03-30T08:00:00","2024-04-02T09:54:24","2024-04-02T09:54:26",{"$nulls":5},"Nei","Nei"," - ",null,null," - "," - "," - ",null,null,"02 - Normal drift","Hindrende"," - "," - "," - ","Nei","Ja",null,null,null," - ","* - IFS Applications","SEO - Serviceordre","NOK",null," - "," - "," - "," - ",null,null,"Nei","Nei","Nei","Nei","Nei","Nei","Nei","Nei","Nei","Ja"," - "," - "," - ",100," - ",{"$nulls":4},"Utført ihht sjekkliste.",null,null,"Nei","Ja","Nei","*","2024-03-21T03:07:47","IFSAPP","2024-03-21T03:07:47","KBIOL",null,1,"Månedlig kontroll utføres ihht sjekkpunkter under trinn","PmAction",null,"31974-2-","31974","2","34","1",null,null,"Nei",null,null,null,"Nei",{"$f":"DATE(2025,10,29)","v":"2025-10-29"},"KBBFA, KBSOL"]
[1525050,10,"1 månedskontroll","KB - Kristiansund lufth",2614662,"Fullført","+KB996=910.472",1,"117",null,"Olsen, Sindre Krane (KBSOL)","KB - Kristiansund lufth","KB200 - Kristiansund Drift","RM - Rullende materiell","3 - Til planlegging (<14d)","UTSTYR","CA - Hovedadministrasjon","AVIRAMP-CONTINENTAL-R-AR187","UTSTYR","CA - Hovedadministrasjon","AVIRAMP-CONTINENTAL-R-AR187","AR 187","02 - Forebyggende vedlikehold"," - ","Månedlig kontroll Utføres i henhold til standard jobb sjekkliste"," - ",null,null," - ","2024-04-22T07:00:00","2024-04-28T17:00:00",1,null,"2024-04-27T07:00:00","2024-04-27T08:00:00","2024-05-12T17:10:08","2024-05-12T17:35:49",{"$nulls":5},"Nei","Nei"," - ",null,null," - "," - "," - ",null,null,"02 - Normal drift","Hindrende"," - "," - "," - ","Nei","Ja",null,null,null," - ","* - IFS Applications","SEO - Serviceordre","NOK",null," - "," - "," - "," - ",null,null,"Nei","Nei","Nei","Nei","Nei","Nei","Nei","Nei","Nei","Ja"," - "," - "," - ",100," - ",{"$nulls":4},"12.05.2024 17:35 - KBSOL\r\nUtført iht. sjekkliste, Ok.",null,null,"Nei","Ja","Nei","*","2024-04-18T03:09:36","IFSAPP","2024-04-18T03:09:36","KBIOL",null,1,"Månedlig kontroll utføres ihht sjekkpunkter under trinn","PmAction",null,"31974-2-","31974","2","35","1",null,null,"Nei",null,"Sann",null,"Nei",{"$f":"DATE(2025,10,29)","v":"2025-10-29"},"KBSOL"]
[1547879,10,"1 månedskontroll","KB - Kristiansund lufth",2636958,"Fullført","+KB996=910.472",1,"117;ZCFT-10","KBSOL","Olsen, Sindre Krane (KBSOL)","KB - Kristiansund lufth","KB200 - Kristiansund Drift","RM - Rullende materiell","3 - Til planlegging (<14d)","UTSTYR","CA - Hovedadministrasjon","AVIRAMP-CONTINENTAL-R-AR187","UTSTYR","CA - Hovedadministrasjon","AVIRAMP-CONTINENTAL-R-AR187","AR 187","02 - Forebyggende vedlikehold"," - ","Månedlig kontroll Utføres i henhold til standard jobb sjekkliste"," - ",null,null," - ","2024-05-20T07:00:00","2024-05-26T17:00:00",1,null,"2024-05-25T07:00:00","2024-05-25T08:00:00","2024-06-09T13:39:38","2024-06-09T13:41:18",{"$nulls":5},"Nei","Nei"," - ",null,null," - "," - "," - ",null,null,"02 - Normal drift","Hindrende"," - "," - "," - ","Nei","Ja",null,null,null," - ","* - IFS Applications","SEO - Serviceordre","NOK",null," - "," - "," - "," - ",null,null,"Nei","Nei","Nei","Nei","Nei","Nei","Nei","Nei","Nei","Ja"," - "," - "," - ",100," - ",{"$nulls":4},"09.06.2024 13:41 - KBSOL\r\nUtført iht. sjekkliste, OK",null,null,"Nei","Ja","Nei","*","2024-05-16T03:08:44","IFSAPP","2024-05-16T03:08:44","KBIOL",null,1,"Månedlig kontroll utføres ihht sjekkpunkter under trinn","PmAction",null,"31974-2-","31974","2","36","1",null,null,"Nei",null,"Sann",null,"Nei",{"$f":"DATE(2025,10,29)","v":"2025-10-29"},"KBSOL"]
[1567571,10,"Korrektivt vedlikehold","KB - Kristiansund lufth",2656370,"Fullført","+KB996=910.472",1.5,"117",null,"Olsen, Inge Michael (KBIOL)","KB - Kristiansund lufth","KB200 - Kristiansund Drift","RM - Rullende materiell"," - ","UTSTYR","CA - Hovedadministrasjon","AVIRAMP-CONTINENTAL-R-AR187","UTSTYR","CA - Hovedadministrasjon","AVIRAMP-CONTINENTAL-R-AR187","AR 187","01 - Korrektivt vedlikehold"," - ","Utstyr startet ikke, utstyr måtte taues bort fra flyet ved avgang."," - ",null,null," - ","2024-06-12",{"$nulls":5},"2024-06-12T07:00:00","2024-06-12T12:54:44",{"$nulls":5},"Nei","Nei"," - ",null,null," - "," - "," - ",null,null," - ",null," - "," - "," - ","Nei","Ja",null,null,null," - ","* - IFS Applications","SEO - Serviceordre","NOK",null," - "," - "," - "," - ",null,null,"Nei","Nei","Nei","Nei","Nei","Nei","Nei","Nei","Nei","Ja"," - "," - "," - ",100," - ",{"$nulls":4},"Etter en feilsøking ble det avdekket dårlig kontakt på Abico til stopp solenoid, ny kontakt montert.",null,null,"Nei","Nei","Nei","KBIOL","2024-06-12T12:51:02","KBIOL","2024-06-12T12:52:16",{"$nulls":13},"Nei",null,null,null,"Nei",null,"KBFRS"]
[1568791,10,"1 månedskontroll","KB - Kristiansund lufth",2657571,"Fullført","+KB996=910.472",1,"117",null,"Farstad, Bjørn Egil Nilsen (KBBFA)","KB - Kristiansund lufth","KB200 - Kristiansund Drift","RM - Rullende materiell","3 - Til planlegging (<14d)","UTSTYR","CA - Hovedadministrasjon","AVIRAMP-CONTINENTAL-R-AR187","UTSTYR","CA - Hovedadministrasjon","AVIRAMP-CONTINENTAL-R-AR187","AR 187","02 - Forebyggende vedlikehold"," - ","Månedlig kontroll Utføres i henhold til standard jobb sjekkliste"," - ",null,null," - ","2024-06-17T07:00:00","2024-06-23T17:00:00",1,null,"2024-06-22T07:00:00","2024-06-22T08:00:00","2024-07-16T10:08:18","2024-07-16T16:31:20",{"$nulls":5},"Nei","Nei"," - ",null,null," - "," - "," - ",null,null,"02 - Normal drift","Hindrende"," - "," - "," - ","Nei","Ja",null,null,null," - ","* - IFS Applications","SEO - Serviceordre","NOK",null," - "," - "," - "," - ",null,null,"Nei","Nei","Nei","Nei","Nei","Nei","Nei","Nei","Nei","Ja"," - "," - "," - ",100," - ",{"$nulls":4},"Husk å kontrollere luftrykk i hjul. Kontrollert trykk-ok.\r\n-Kontrollert ihht skjema.",null,null,"Nei","Ja","Nei","*","2024-06-13T03:07:20","IFSAPP","2024-06-13T03:07:20","KBIOL",null,1,"Månedlig kontroll utføres ihht sjekkpunkter under trinn","PmAction",null,"31974-2-","31974","2","37","1",null,null,"Nei",null,null,null,"Nei",{"$f":"DATE(2025,10,29)","v":"2025-10-29"},"KBBFA"]
[1589717,10,"1 månedskontroll","KB - Kristiansund lufth",2678113,"Fullført","+KB996=910.472",1,"117;ZCFT-10","KBSOL","Vikan, Asgeir (KBAVI)","KB - Kristiansund lufth","KB200 - Kristiansund Drift","RM - Rullende materiell","3 - Til planlegging (<14d)","UTSTYR","CA - Hovedadministrasjon","AVIRAMP-CONTINENTAL-R-AR187","UTSTYR","CA - Hovedadministrasjon","AVIRAMP-CONTINENTAL-R-AR187","AR 187","02 - Forebyggende vedlikehold"," - ","Månedlig kontroll Utføres i henhold til standard jobb sjekkliste"," - ",null,null," - ","2024-07-15T07:00:00","2024-07-21T17:00:00",1,null,"2024-07-20T07:00:00","2024-07-20T08:00:00","2024-07-30T12:58:50","2024-07-30T12:59:36",{"$nulls":5},"Nei","Nei"," - ",null,null," - "," - "," - ",null,null,"02 - Normal drift","Hindrende"," - "," - "," - ","Nei","Ja",null,null,null," - ","* - IFS Applications","SEO - Serviceordre","NOK",null," - "," - "," - "," - ",null,null,"Nei","Nei","Nei","Nei","Nei","Nei","Nei","Nei","Nei","Ja"," - "," - "," - ",100," - ",{"$nulls":4},"Utført iht. sjekkliste.\r\nBør etterfylle hydraulikkolje på tanken, da det begynner å bli lite med støttebenene kjørt helt inn. Ikke tegn til lekkasje.",null,null,"Nei","Ja","Nei","*","2024-07-11T03:08:43","IFSAPP","2024-07-11T03:08:43","KBIOL",null,1,"Månedlig kontroll utføres ihht sjekkpunkter under trinn","PmAction",null,"31974-2-","31974","2","38","1",null,null,"Nei",null,null,null,"Nei",{"$f":"DATE(2025,10,29)","v":"2025-10-29"},"KBSOL"]
[1599439,10,"1 årskontroll","KB - Kristiansund lufth",2687724,"Fullført","+KB996=910.472",3,"117",null,"Olsen, Inge Michael (KBIOL)","KB - Kristiansund lufth","KB200 - Kristiansund Drift"," - ","3 - Til planlegging (<14d)","UTSTYR","CA - Hovedadministrasjon","AVIRAMP-CONTINENTAL-R-AR187","UTSTYR","CA - Hovedadministrasjon","AVIRAMP-CONTINENTAL-R-AR187","AR 187","02 - Forebyggende vedlikehold"," - ","Årlig vedlikehold Utføres i henhold til standard jobb sjekkliste"," - ",null,null," - ","2024-07-29T07:00:00","2024-08-04T17:00:00",10,null,"2024-08-01T07:00:00","2024-08-01T17:00:00","2024-10-27T20:46:24","2024-10-27T20:48:27",{"$nulls":5},"Nei","Nei"," - ",null,null," - "," - "," - ",null,null,"02 - Normal drift","Hindrende"," - "," - "," - ","Nei","Ja",null,null,null," - ","* - IFS Applications","SEO - Serviceordre","NOK",null," - "," - "," - "," - ",null,null,"Nei","Nei","Nei","Nei","Nei","Nei","Nei","Nei","Nei","Ja"," - "," - "," - ",100," - ",{"$nulls":4},"Byttet alle filtre, foruten hydraulikkfilter.\r\nByttet motorolje, ca. 1 liter.\r\nVasket og spylt innvendig. \r\nNedjusterjustert dekktrykk til 5,5 bar, som et prøveprosjekt.",null,null,"Nei","Ja","Nei","*","2024-07-25T03:11:35","IFSAPP","2024-07-25T03:11:35","KBIOL",null,1,"Årlig vedlikehold utføres ihht sjekkpunkter under trinn","PmAction",null,"31975-1-","31975","1","3","1",null,null,"Nei",null,null,null,"Nei",{"$f":"DATE(2024,10,27)","v":"2024-10-27"},"KBSOL"]
[1609917,10,"1 månedskontroll","KB - Kristiansund lufth",2698076,"Fullført","+KB996=910.472",1,"117;ZCFT-10","KBSOL","Olsen, Inge Michael (KBIOL)","KB - Kristiansund lufth","KB200 - Kristiansund Drift","RM - Rullende materiell","3 - Til planlegging (<14d)","UTSTYR","CA - Hovedadministrasjon","AVIRAMP-CONTINENTAL-R-AR187","UTSTYR","CA - Hovedadministrasjon","AVIRAMP-CONTINENTAL-R-AR187","AR 187","02 - Forebyggende vedlikehold"," - ","Månedlig kontroll Utføres i henhold til standard jobb sjekkliste"," - ",null,null," - ","2024-08-12T07:00:00","2024-08-18T17:00:00",1,null,"2024-08-17T07:00:00","2024-08-17T08:00:00","2024-08-12T19:36:10","2024-08-12T19:36:35",{"$nulls":5},"Nei","Nei"," - ",null,null," - "," - "," - ",null,null,"02 - Normal drift","Hindrende"," - "," - "," - ","Nei","Ja",null,null,null," - ","* - IFS Applications","SEO - Serviceordre","NOK",null," - "," - "," - "," - ",null,null,"Nei","Nei","Nei","Nei","Nei","Nei","Nei","Nei","Nei","Ja"," - "," - "," - ",100," - ",{"$nulls":4},"12.08.2024 19:36 - KBSOL\r\nUtført iht. sjekkliste, OK.",null,null,"Nei","Ja","Nei","*","2024-08-08T03:08:25","IFSAPP","2024-08-08T03:08:25","KBIOL",null,1,"Månedlig kontroll utføres ihht sjekkpunkter under trinn","PmAction",null,"31974-2-","31974","2","39","1",null,null,"Nei",null,"Sann",null,"Nei",{"$f":"DATE(2025,10,29)","v":"2025-10-29"},"KBSOL"]
[1630701,10,"1 månedskontroll","KB - Kristiansund lufth",2718516,"Fullført","+KB996=910.472",1.5,"117;ZCFT-10;ZCFT-10","KBNRO;KBBFA","Farstad, Bjørn Egil Nilsen (KBBFA)","KB - Kristiansund lufth","KB200 - Kristiansund Drift","RM - Rullende materiell","3 - Til planlegging (<14d)","UTSTYR","CA - Hovedadministrasjon","AVIRAMP-CONTINENTAL-R-AR187","UTSTYR","CA - Hovedadministrasjon","AVIRAMP-CONTINENTAL-R-AR187","AR 187","02 - Forebyggende vedlikehold"," - ","Månedlig kontroll Utføres i henhold til standard jobb sjekkliste"," - ",null,null," - ","2024-09-09T07:00:00","2024-09-15T17:00:00",1,null,"2024-09-14T07:00:00","2024-09-14T08:00:00","2024-09-18T12:59:47","2024-09-20T16:40:33",{"$nulls":5},"Nei","Nei"," - ",null,null," - "," - "," - ",null,null,"02 - Normal drift","Hindrende"," - "," - "," - ","Nei","Ja",null,null,null," - ","* - IFS Applications","SEO - Serviceordre","NOK",null," - "," - "," - "," - ",null,null,"Nei","Nei","Nei","Nei","Nei","Nei","Nei","Nei","Nei","Ja"," - "," - "," - ",100," - ",{"$nulls":4},"Kontroll utført ihht skjema.",null,null,"Nei","Ja","Nei","*","2024-09-05T03:09:31","IFSAPP","2024-09-05T03:09:31","KBIOL",null,1,"Månedlig kontroll utføres ihht sjekkpunkter under trinn","PmAction",null,"31974-2-","31974","2","40","1",null,null,"Nei",null,null,null,"Nei",{"$f":"DATE(2025,10,29)","v":"2025-10-29"},"KBBFA"]
[1652679,10,"1 månedskontroll","KB - Kristiansund lufth",2740117,"Fullført","+KB996=910.472",1,"117",null,"Olsen, Sindre Krane (KBSOL)","KB - Kristiansund lufth","KB200 - Kristiansund Drift","RM - Rullende materiell","3 - Til planlegging (<14d)","UTSTYR","CA - Hovedadministrasjon","AVIRAMP-CONTINENTAL-R-AR187","UTSTYR","CA - Hovedadministrasjon","AVIRAMP-CONTINENTAL-R-AR187","AR 187","02 - Forebyggende vedlikehold"," - ","Månedlig kontroll Utføres i henhold til standard jobb sjekkliste"," - ",null,null," - ","2024-10-07T07:00:00","2024-10-13T17:00:00",1,null,"2024-10-12T07:00:00","2024-10-12T08:00:00","2024-10-16T19:18:48","2024-10-16T19:27:42",{"$nulls":5},"Nei","Nei"," - ",null,null," - "," - "," - ",null,null,"02 - Normal drift","Hindrende"," - "," - "," - ","Nei","Ja",null,null,null," - ","* - IFS Applications","SEO - Serviceordre","NOK",null," - "," - "," - "," - ",null,null,"Nei","Nei","Nei","Nei","Nei","Nei","Nei","Nei","Nei","Ja"," - "," - "," - ",100," - ",{"$nulls":4},"Utført iht. sjekkliste.\r\nFant mangel på luftventil på hjul nærmest motor. Ventil var fylt med \"gummi\", og var ikke mulig å fylle med luft. Korrektiv AO opprettes.\r\nEllers OK.",null,null,"Nei","Ja","Nei","*","2024-10-03T03:11:03","IFSAPP","2024-10-03T03:11:03","KBIOL",null,1,"Månedlig kontroll utføres ihht sjekkpunkter under trinn","PmAction",null,"31974-2-","31974","2","41","1",null,null,"Nei",null,null,null,"Nei",{"$f":"DATE(2025,10,29)","v":"2025-10-29"},"KBSOL"]
[1661832,20,"Korrektiv vedlikehold","KB - Kristiansund lufth",2740117,"Fullført","+KB996=910.472",3.5,"117;ZCFT-10;ZCFT-10","KBSOL;KBBFA","Olsen, Inge Michael (KBIOL)","KB - Kristiansund lufth","KB200 - Kristiansund Drift","RM - Rullende materiell"," - ",null,"CA - Hovedadministrasjon","AVIRAMP-CONTINENTAL-R-AR187","UTSTYR","CA - Hovedadministrasjon","AVIRAMP-CONTINENTAL-R-AR187","AR 187","01 - Korrektivt vedlikehold"," - ","-Ikke mulig å fylle luft i hjul høyre bak. Ventil er fylt med gummi.\r\n-Oljelekkasje på bremse høyre bak, oppdaget ved årlig kontroll."," - ",null,null," - ","2024-10-07T07:00:00","2024-10-13T17:00:00",{"$nulls":4},"2024-10-27T20:50:37","2024-10-27T21:46:46",{"$nulls":5},"Nei","Nei"," - ",null,null," - "," - "," - ",null,null,"02 - Normal drift","Hindrende"," - "," - "," - ","Nei","Ja",null,null,null," - ","* - IFS Applications","SEO - Serviceordre","NOK",null," - "," - "," - "," - ",null,null,"Nei","Nei","Nei","Nei","Nei","Nei","Nei","Nei","Nei","Ja"," - "," - "," - ",100," - ",{"$nulls":4},"Hjul var gummifylt, ble vurdert til at vi ikke byttet om til luftfylt i denne omgang.\r\n\r\n-Byttet bremse høyre side bak, (Oppdaget ved årlig kontroll) kontrollert funksjon-ok.",null,null,"Nei","Ja","Nei","KBSOL","2024-10-16T19:26:22","KBSOL","2024-10-16T19:26:22","KBIOL",null,null,null,"JtTaskStep","KB","1652679-4001340-Kontrollere at alle hjul er hele og skadefrie.",{"$nulls":6},"Nei","Sann",null,null,"Nei",null,"KBBFA, KBSOL"]
[1666341,10,"Korrektivt vedlikehold","KB - Kristiansund lufth",2753573,"Fullført","+KB996=910.472",2,"117",null,"Olsen, Inge Michael (KBIOL)","KB - Kristiansund lufth","KB200 - Kristiansund Drift","RM - Rullende materiell"," - ","UTSTYR","CA - Hovedadministrasjon","AVIRAMP-CONTINENTAL-R-AR187","UTSTYR","CA - Hovedadministrasjon","AVIRAMP-CONTINENTAL-R-AR187","AR 187","01 - Korrektivt vedlikehold"," - ","Drivhjul nye lager monteres, de gamle var defekt."," - ",null,null," - ",{"$nulls":6},"2024-10-22T12:10:21","2024-11-04T10:40:16",{"$nulls":5},"Nei","Nei"," - ",null,null," - "," - "," - ",null,null," - ",null," - "," - "," - ","Nei","Ja",null,null,null," - ","* - IFS Applications","SEO - Serviceordre","NOK",null," - "," - "," - "," - ",null,null,"Nei","Nei","Nei","Nei","Nei","Nei","Nei","Nei","Nei","Ja"," - "," - "," - ",100," - ",{"$nulls":4},"Lager ut montert, ny presset inn. Felg og hjul levert Auto Elektro for montering.",null,null,"Nei","Nei","Nei","KBIOL","2024-10-22T12:09:33","KBIOL","2024-10-22T12:10:16",{"$nulls":13},"Nei",null,null,null,"Nei",null,"KBIOL"]
[1674531,10,"1 månedskontroll","KB - Kristiansund lufth",2761630,"Fullført","+KB996=910.472",1,"117",null,"Olsen, Inge Michael (KBIOL)","KB - Kristiansund lufth","KB200 - Kristiansund Drift","RM - Rullende materiell","3 - Til planlegging (<14d)","UTSTYR","CA - Hovedadministrasjon","AVIRAMP-CONTINENTAL-R-AR187","UTSTYR","CA - Hovedadministrasjon","AVIRAMP-CONTINENTAL-R-AR187","AR 187","02 - Forebyggende vedlikehold"," - ","Månedlig kontroll Utføres i henhold til standard jobb sjekkliste"," - ",null,null," - ","2024-11-04T07:00:00","2024-11-10T17:00:00",1,null,"2024-11-09T07:00:00","2024-11-09T08:00:00","2024-11-05T19:42:12","2024-11-05T19:43:07",{"$nulls":5},"Nei","Nei"," - ",null,null," - "," - "," - ",null,null,"02 - Normal drift","Hindrende"," - "," - "," - ","Nei","Ja",null,null,null," - ","* - IFS Applications","SEO - Serviceordre","NOK",null," - "," - "," - "," - ",null,null,"Nei","Nei","Nei","Nei","Nei","Nei","Nei","Nei","Nei","Ja"," - "," - "," - ",100," - ",{"$nulls":4},"05.11.2024 19:42 - KBSOL\r\nUtført iht. sjekkliste, OK.\rNoe tregt å vri rundt nøkkel i tenning.",null,null,"Nei","Ja","Nei","*","2024-10-31T03:11:03","IFSAPP","2024-10-31T03:11:03","KBIOL",null,1,"Månedlig kontroll utføres ihht sjekkpunkter under trinn","PmAction",null,"31974-2-","31974","2","42","1",null,null,"Nei",null,"Sann",null,"Nei",{"$f":"DATE(2025,10,29)","v":"2025-10-29"},"KBSOL"]
[1682356,10,"Korrektivt vedlikehold","KB - Kristiansund lufth",2769361,"Fullført","+KB996=910.472",0.75,"117",null,"Olsen, Inge Michael (KBIOL)","KB - Kristiansund lufth","KB200 - Kristiansund Drift","RM - Rullende materiell"," - ","UTSTYR","CA - Hovedadministrasjon","AVIRAMP-CONTINENTAL-R-AR187","UTSTYR","CA - Hovedadministrasjon","AVIRAMP-CONTINENTAL-R-AR187","AR 187","01 - Korrektivt vedlikehold"," - ","Dekk lagt om på felg"," - ",null,null," - ",{"$nulls":6},"2024-11-08T08:15:12","2024-11-13T09:52:13",{"$nulls":5},"Nei","Nei"," - ",null,null," - "," - "," - ",null,null," - ",null," - "," - "," - ","Nei","Ja",null,null,null," - ","* - IFS Applications","SEO - Serviceordre","NOK",null," - "," - "," - "," - ",null,null,"Nei","Nei","Nei","Nei","Nei","Nei","Nei","Nei","Nei","Ja"," - "," - "," - ",100," - ",{"$nulls":4},"-Montert nye lager på èn framfelg. Felgen ligger på hylla i løp 9.",null,null,"Nei","Nei","Nei","KBIOL","2024-11-08T08:13:55","KBIOL","2024-11-08T08:14:44",{"$nulls":13},"Nei",null,null,null,"Nei",null,"KBBFA"]
[1696206,10,"1 månedskontroll","KB - Kristiansund lufth",2782933,"Fullført","+KB996=910.472",1,"117",null,"Olsen, Inge Michael (KBIOL)","KB - Kristiansund lufth","KB200 - Kristiansund Drift","RM - Rullende materiell","3 - Til planlegging (<14d)","UTSTYR","CA - Hovedadministrasjon","AVIRAMP-CONTINENTAL-R-AR187","UTSTYR","CA - Hovedadministrasjon","AVIRAMP-CONTINENTAL-R-AR187","AR 187","02 - Forebyggende vedlikehold"," - ","Månedlig kontroll Utføres i henhold til standard jobb sjekkliste"," - ",null,null," - ","2024-12-02T07:00:00","2024-12-08T17:00:00",1,null,"2024-12-07T07:00:00","2024-12-07T08:00:00","2024-12-10T13:16:57","2024-12-10T13:17:04",{"$nulls":5},"Nei","Nei"," - ",null,null," - "," - "," - ",null,null,"02 - Normal drift","Hindrende"," - "," - "," - ","Nei","Ja",null,null,null," - ","* - IFS Applications","SEO - Serviceordre","NOK",null," - "," - "," - "," - ",null,null,"Nei","Nei","Nei","Nei","Nei","Nei","Nei","Nei","Nei","Ja"," - "," - "," - ",100," - ",{"$nulls":4},"10.12.2024 13:16 - KBSOL\r\nUtført iht. sjekkliste, OK.",null,null,"Nei","Ja","Nei","*","2024-11-28T03:10:36","IFSAPP","2024-11-28T03:10:36","KBIOL",null,1,"Månedlig kontroll utføres ihht sjekkpunkter under trinn","PmAction",null,"31974-2-","31974","2","43","1",null,null,"Nei",null,"Sann",null,"Nei",{"$f":"DATE(2025,10,29)","v":"2025-10-29"},"KBSOL"]
[1716500,10,"1 månedskontroll","KB - Kristiansund lufth",2802917,"Fullført","+KB996=910.472",1,"117",null,"Olsen, Inge Michael (KBIOL)","KB - Kristiansund lufth","KB200 - Kristiansund Drift","RM - Rullende materiell","3 - Til planlegging (<14d)","UTSTYR","CA - Hovedadministrasjon","AVIRAMP-CONTINENTAL-R-AR187","UTSTYR","CA - Hovedadministrasjon","AVIRAMP-CONTINENTAL-R-AR187","AR 187","02 - Forebyggende vedlikehold"," - ","Månedlig kontroll Utføres i henhold til standard jobb sjekkliste"," - ",null,null," - ","2024-12-30T07:00:00","2025-01-05T17:00:00",1,null,"2025-01-04T07:00:00","2025-01-04T08:00:00","2025-01-18T13:01:06","2025-01-18T13:09:29",{"$nulls":5},"Nei","Nei"," - ",null,null," - "," - "," - ",null,null,"02 - Normal drift","Hindrende"," - "," - "," - ","Nei","Ja",null,null,null," - ","* - IFS Applications","SEO - Serviceordre","NOK",null," - "," - "," - "," - ",null,null,"Nei","Nei","Nei","Nei","Nei","Nei","Nei","Nei","Nei","Ja"," - "," - "," - ",100," - ",{"$nulls":4},"18.01.2025 13:00 - KBSOL\r\nUtført iht. sjekkliste. Funn av manglende fjær og låsesplint til lås på vegg på skinne h.s. som skal inntil flykropp. Ellers OK. Registrert driftstimer.",null,null,"Ja","Ja","Nei","*","2024-12-26T03:14:04","IFSAPP","2024-12-26T03:14:04","KBIOL",null,1,"Månedlig kontroll utføres ihht sjekkpunkter under trinn","PmAction",null,"31974-2-","31974","2","44","1",null,null,"Nei",null,"Sann",null,"Nei",{"$f":"DATE(2025,10,29)","v":"2025-10-29"},"KBSOL"]
[1736419,10,"Korrektivt vedlikehold","KB - Kristiansund lufth",2822618,"Fullført","+KB996=910.472",13.75,"117",null,"Olsen, Inge Michael (KBIOL)","KB - Kristiansund lufth","KB200 - Kristiansund Drift","RM - Rullende materiell"," - ","UTSTYR","CA - Hovedadministrasjon","AVIRAMP-CONTINENTAL-R-AR187","UTSTYR","CA - Hovedadministrasjon","AVIRAMP-CONTINENTAL-R-AR187","AR 187","01 - Korrektivt vedlikehold"," - ","Oljelekkasje ved høyre bakhjul."," - ",null,null," - ",{"$nulls":6},"2025-01-16T13:49:38","2025-01-22T17:28:32",{"$nulls":5},"Nei","Nei"," - ",null,null," - "," - "," - ",null,null," - ",null," - "," - "," - ","Nei","Ja",null,null,null," - ","* - IFS Applications","SEO - Serviceordre","NOK",null," - "," - "," - "," - ",null,null,"Nei","Nei","Nei","Nei","Nei","Nei","Nei","Nei","Nei","Ja"," - "," - "," - ",100," - ",null,null,"16-07-2025  KBIOL - På vent fjernet\r\n27-01-2025  KBIOL - På vent -Økonomi\r\nVenter på faktura for føring av kost\r\n",null,"-Etterfylt olje, kontrollert for lekkasje. Lekkasje fra brems på høyre bakhjul, kommer ut gjennom lufteskruen og deling. Forsøkt å montere ny lufteskru, samme feil.  Ser at bremsen har delt seg, boltene har løsnet. Årsak uviss, mest sannsynlig feil ved montering fra fabrikk da bremsen er ny og ble skiftet i høst 2024. \r\n\r\n-Demont. motor, skrudd sammen brems igjen. Lekkasjen har flyttet seg fra deling i brems til lekkasje gjennom tetningsring i fremkant. \r\n\r\n-Demont. brems og skrudd den fra hverandre. Tatt ut fjærene som utgjør selve bremsen, noe som gjør at brems ikke er operativ på høyre side! Slangen til bremsen er blendet og festet oppe på ramme!\r\n\r\n-Bremsen er defekt og må byttes!\r\n18.01.2025 13:09 - KBSOL\r\nEtterfylt ca 3 liter med hydraulikkolje.\r\n\r\n22/1-25: -Byttet brems høyre bakhjul. Kontrollert for lekkasje, ingen lekkasje å se pr nå.",null,null,"Nei","Nei","Nei","KBBFA","2025-01-16T13:37:05","KBBFA","2025-01-16T13:37:45",{"$nulls":13},"Nei",null,null,null,"Nei",null,"KBBFA, KBOEI, KBSOL"]
[1739632,10,"1 månedskontroll","KB - Kristiansund lufth",2825702,"Fullført","+KB996=910.472",1,"117",null,"Olsen, Inge Michael (KBIOL)","KB - Kristiansund lufth","KB200 - Kristiansund Drift","RM - Rullende materiell","3 - Til planlegging (<14d)","UTSTYR","CA - Hovedadministrasjon","AVIRAMP-CONTINENTAL-R-AR187","UTSTYR","CA - Hovedadministrasjon","AVIRAMP-CONTINENTAL-R-AR187","AR 187","02 - Forebyggende vedlikehold"," - ","Månedlig kontroll Utføres i henhold til standard jobb sjekkliste"," - ",null,null," - ","2025-01-27T07:00:00","2025-02-02T17:00:00",1,null,"2025-02-01T07:00:00","2025-02-01T08:00:00","2025-02-05T12:28:50","2025-02-24T16:26:02",{"$nulls":5},"Nei","Nei"," - ",null,null," - "," - "," - ",null,null,"02 - Normal drift","Hindrende"," - "," - "," - ","Nei","Ja",null,null,null," - ","* - IFS Applications","SEO - Serviceordre","NOK",null," - "," - "," - "," - ",null,null,"Nei","Nei","Nei","Nei","Nei","Nei","Nei","Nei","Nei","Ja"," - "," - "," - ",100," - ",{"$nulls":4},"24.02.2025 16:25 - KBSOL\r\nUtført iht. sjekk, OK.",null,null,"Nei","Ja","Nei","*","2025-01-23T03:14:18","IFSAPP","2025-01-23T03:14:18","KBIOL",null,1,"Månedlig kontroll utføres ihht sjekkpunkter under trinn","PmAction",null,"31974-2-","31974","2","45","1",null,null,"Nei",null,"Sann",null,"Nei",{"$f":"DATE(2025,10,29)","v":"2025-10-29"},"KBSOL"]
[1743534,10,"Korrektivt vedlikehold","KB - Kristiansund lufth",2829583,"Fullført","+KB996=910.472",1,"113",null,"Råket, Einar (KBERA)","KB - Kristiansund lufth","KB200 - Kristiansund Drift","EL - Elektro"," - ","UTSTYR","CA - Hovedadministrasjon","AVIRAMP-CONTINENTAL-R-AR187","UTSTYR","CA - Hovedadministrasjon","AVIRAMP-CONTINENTAL-R-AR187","AR 187","01 - Korrektivt vedlikehold"," - ","Propell på vindmåler løsnet."," - ",null,null," - ",{"$nulls":6},"2025-01-26T19:35:29","2025-01-26T19:35:57",{"$nulls":5},"Nei","Nei"," - ",null,null," - "," - "," - ",null,null," - ",null," - "," - "," - ","Nei","Ja",null,null,null," - ","* - IFS Applications","SEO - Serviceordre","NOK",null," - "," - "," - "," - ",null,null,"Nei","Nei","Nei","Nei","Nei","Nei","Nei","Nei","Nei","Ja"," - "," - "," - ",100," - ",{"$nulls":4},"Festet propell med en liten klatt med lim inne i akslingen.",null,null,"Nei","Nei","Nei","KBRHE","2025-01-26T19:34:52","KBRHE","2025-01-26T19:35:22",{"$nulls":13},"Nei",null,null,null,"Nei",null,"KBRHE"]
[1758466,10,"Korrektivt vedlikehold","KB - Kristiansund lufth",2844279,"Fullført","+KB996=910.472",0.5,null,null,"Råket, Einar (KBERA)","KB - Kristiansund lufth","KB200 - Kristiansund Drift","EL - Elektro","2 - I løpet av dagen (<12t)","UTSTYR","CA - Hovedadministrasjon","AVIRAMP-CONTINENTAL-R-AR187","UTSTYR","CA - Hovedadministrasjon","AVIRAMP-CONTINENTAL-R-AR187","AR 187","01 - Korrektivt vedlikehold"," - ","Test"," - ",null,null," - ",{"$nulls":6},"2025-03-13T13:54:11","2025-03-13T13:54:50",{"$nulls":5},"Nei","Nei"," - ",null,null," - "," - "," - ",null,null,"02 - Normal drift","Hindrende"," - "," - "," - ","Nei","Ja",null,null,null," - ","* - IFS Applications","SEO - Serviceordre","NOK",null," - "," - "," - "," - ",null,null,"Nei","Nei","Nei","Nei","Nei","Nei","Nei","Nei","Nei","Ja"," - "," - "," - ",100," - ",{"$nulls":4},"Test OK.",null,null,"Nei","Ja","Nei","KBRHE","2025-02-14T07:15:43","KBRHE","2025-02-14T07:15:43",{"$nulls":13},"Nei",null,null,"Sann","Nei",null,"KBERA"]
[1761480,10,"1 månedskontroll","KB - Kristiansund lufth",2847179,"Fullført","+KB996=910.472",1,"117;ZCFT-10","KBSOL","Råket, Einar (KBERA)","KB - Kristiansund lufth","KB200 - Kristiansund Drift","RM - Rullende materiell","3 - Til planlegging (<14d)","UTSTYR","CA - Hovedadministrasjon","AVIRAMP-CONTINENTAL-R-AR187","UTSTYR","CA - Hovedadministrasjon","AVIRAMP-CONTINENTAL-R-AR187","AR 187","02 - Forebyggende vedlikehold"," - ","Månedlig kontroll Utføres i henhold til standard jobb sjekkliste"," - ",null,null," - ","2025-02-24T07:00:00","2025-03-02T17:00:00",1,null,"2025-03-01T07:00:00","2025-03-01T08:00:00","2025-03-17T13:23:39","2025-03-17T13:24:58",{"$nulls":5},"Nei","Nei"," - ",null,null," - "," - "," - ",null,null,"02 - Normal drift","Hindrende"," - "," - "," - ","Nei","Ja",null,null,null," - ","* - IFS Applications","SEO - Serviceordre","NOK",null," - "," - "," - "," - ",null,null,"Nei","Nei","Nei","Nei","Nei","Nei","Nei","Nei","Nei","Ja"," - "," - "," - ",100," - ",{"$nulls":4},"Utført iht. sjekkliste. Ble gjort oppmerksom av Aviator at plastgardinene er såpass slitt at de kan slå inn på passasjerene ved ordentlig dårlig vært og kraftige vindkast. \r\nFikk ordnet en provisorisk løsning for å sikre de bittelitt, men det trengs å utbedres ytterligere. Jeg tar meg av videre arbeid. -KBSOL",null,null,"Nei","Ja","Nei","*","2025-02-20T03:15:10","IFSAPP","2025-02-20T03:15:10","KBIOL",null,1,"Månedlig kontroll utføres ihht sjekkpunkter under trinn","PmAction",null,"31974-2-","31974","2","46","1",null,null,"Nei",null,null,null,"Nei",{"$f":"DATE(2025,10,29)","v":"2025-10-29"},"KBSOL"]
[1781597,10,"Korrektivt vedlikehold","KB - Kristiansund lufth",2866951,"Fullført","+KB996=910.472",2,"117",null,"Olsen, Inge Michael (KBIOL)","KB - Kristiansund lufth","KB200 - Kristiansund Drift","RM - Rullende materiell"," - ","UTSTYR","CA - Hovedadministrasjon","AVIRAMP-CONTINENTAL-R-AR187","UTSTYR","CA - Hovedadministrasjon","AVIRAMP-CONTINENTAL-R-AR187","AR 187","01 - Korrektivt vedlikehold"," - ","Reparasjon av plastgardin ved nødutgang."," - ",null,null," - ",{"$nulls":6},"2025-03-18T20:40:19","2025-03-18T20:40:20",{"$nulls":5},"Nei","Nei"," - ",null,null," - "," - "," - ",null,null," - ",null," - "," - "," - ","Nei","Ja",null,null,null," - ","* - IFS Applications","SEO - Serviceordre","NOK",null," - "," - "," - "," - ",null,null,"Nei","Nei","Nei","Nei","Nei","Nei","Nei","Nei","Nei","Ja"," - "," - "," - ",100," - ",{"$nulls":4},"Monterte to nye lengder med plast. Tatt fra rull på lager.",null,null,"Nei","Nei","Nei","KBSOL","2025-03-18T20:38:42","KBSOL","2025-03-18T20:39:17",{"$nulls":13},"Nei",null,null,null,"Nei",null,"KBSOL"]
[1783037,10,"1 månedskontroll","KB - Kristiansund lufth",2868361,"Fullført","+KB996=910.472",1,"117",null,"Olsen, Inge Michael (KBIOL)","KB - Kristiansund lufth","KB200 - Kristiansund Drift","RM - Rullende materiell","3 - Til planlegging (<14d)","UTSTYR","CA - Hovedadministrasjon","AVIRAMP-CONTINENTAL-R-AR187","UTSTYR","CA - Hovedadministrasjon","AVIRAMP-CONTINENTAL-R-AR187","AR 187","02 - Forebyggende vedlikehold"," - ","Månedlig kontroll Utføres i henhold til standard jobb sjekkliste"," - ",null,null," - ","2025-03-24T07:00:00","2025-03-30T17:00:00",1,null,"2025-03-29T07:00:00","2025-03-29T08:00:00","2025-04-03T19:54:59","2025-04-03T19:55:37",{"$nulls":5},"Nei","Nei"," - ",null,null," - "," - "," - ",null,null,"02 - Normal drift","Hindrende"," - "," - "," - ","Nei","Ja",null,null,null," - ","* - IFS Applications","SEO - Serviceordre","NOK",null," - "," - "," - "," - ",null,null,"Nei","Nei","Nei","Nei","Nei","Nei","Nei","Nei","Nei","Ja"," - "," - "," - ",100," - ",{"$nulls":4},"03.04.2025 19:54 - KBSOL\r\nGjennomført visuell- og funksjonskontroll av Aviramp.\rDro ned for å hovedsaklig feilsøke starttrøbbel varslet av Aviator. Viste seg at den ene nødstoppen var trykket inn. Den nærmest motor. \rEllers ok!",null,null,"Nei","Ja","Nei","*","2025-03-20T03:11:24","IFSAPP","2025-03-20T03:11:24","KBIOL",null,1,"Månedlig kontroll utføres ihht sjekkpunkter under trinn","PmAction",null,"31974-2-","31974","2","47","1",null,null,"Nei",null,"Sann",null,"Nei",{"$f":"DATE(2025,10,29)","v":"2025-10-29"},"KBSOL"]
[1806241,10,"1 månedskontroll","KB - Kristiansund lufth",2891215,"Fullført","+KB996=910.472",2,"117",null,"Olsen, Inge Michael (KBIOL)","KB - Kristiansund lufth","KB200 - Kristiansund Drift","RM - Rullende materiell","3 - Til planlegging (<14d)","UTSTYR","CA - Hovedadministrasjon","AVIRAMP-CONTINENTAL-R-AR187","UTSTYR","CA - Hovedadministrasjon","AVIRAMP-CONTINENTAL-R-AR187","AR 187","02 - Forebyggende vedlikehold"," - ","Månedlig kontroll Utføres i henhold til standard jobb sjekkliste"," - ",null,null," - ","2025-04-21T07:00:00","2025-04-27T17:00:00",1,null,"2025-04-26T07:00:00","2025-04-26T08:00:00","2025-05-20T20:35:26","2025-05-20T20:38:21",{"$nulls":5},"Nei","Nei"," - ",null,null," - "," - "," - ",null,null,"02 - Normal drift","Hindrende"," - "," - "," - ","Nei","Ja",null,null,null," - ","* - IFS Applications","SEO - Serviceordre","NOK",null," - "," - "," - "," - ",null,null,"Nei","Nei","Nei","Nei","Nei","Nei","Nei","Nei","Nei","Ja"," - "," - "," - ",100," - ",{"$nulls":4},"-Utført ihht skjema. Ingen feil/mangler.",null,null,"Nei","Ja","Nei","*","2025-04-17T03:11:42","IFSAPP","2025-04-17T03:11:42","KBIOL",null,1,"Månedlig kontroll utføres ihht sjekkpunkter under trinn","PmAction",null,"31974-2-","31974","2","48","1",null,null,"Nei",null,null,null,"Nei",{"$f":"DATE(2025,10,29)","v":"2025-10-29"},"KBBFA, KBFBR"]
[1829594,10,"1 månedskontroll","KB - Kristiansund lufth",2914244,"Fullført","+KB996=910.472",1,"117",null,"Olsen, Inge Michael (KBIOL)","KB - Kristiansund lufth","KB200 - Kristiansund Drift","RM - Rullende materiell","3 - Til planlegging (<14d)","UTSTYR","CA - Hovedadministrasjon","AVIRAMP-CONTINENTAL-R-AR187","UTSTYR","CA - Hovedadministrasjon","AVIRAMP-CONTINENTAL-R-AR187","AR 187","02 - Forebyggende vedlikehold"," - ","Månedlig kontroll Utføres i henhold til standard jobb sjekkliste"," - ",null,null," - ","2025-05-19T07:00:00","2025-05-25T17:00:00",1,null,"2025-05-24T07:00:00","2025-05-24T08:00:00","2025-06-15T15:18:18","2025-06-15T19:10:40",{"$nulls":5},"Nei","Nei"," - ",null,null," - "," - "," - ",null,null,"02 - Normal drift","Hindrende"," - "," - "," - ","Nei","Ja",null,null,null," - ","* - IFS Applications","SEO - Serviceordre","NOK",null," - "," - "," - "," - ",null,null,"Nei","Nei","Nei","Nei","Nei","Nei","Nei","Nei","Nei","Ja"," - "," - "," - ",100," - ",{"$nulls":4},"15.06.2025 15:18 - KBBFA\r\nUtført ihht skjema. Ingen feil/mangler",null,null,"Nei","Ja","Nei","*","2025-05-15T03:09:55","IFSAPP","2025-05-15T03:09:55","KBIOL",null,1,"Månedlig kontroll utføres ihht sjekkpunkter under trinn","PmAction",null,"31974-2-","31974","2","49","1",null,null,"Nei",null,null,null,"Nei",{"$f":"DATE(2025,10,29)","v":"2025-10-29"},"KBBFA"]
[1839925,10,"Korrektivt vedlikehold","KB - Kristiansund lufth",2924421,"Fullført","+KB996=910.472",15,"117",null,"Olsen, Inge Michael (KBIOL)","KB - Kristiansund lufth","KB200 - Kristiansund Drift","RM - Rullende materiell"," - ","UTSTYR","CA - Hovedadministrasjon","AVIRAMP-CONTINENTAL-R-AR187","UTSTYR","CA - Hovedadministrasjon","AVIRAMP-CONTINENTAL-R-AR187","AR 187","01 - Korrektivt vedlikehold"," - ","Motor vil ikke starte."," - ",null,null," - ","2025-05-27",null,null,null,"2025-05-27",null,"2025-05-27T07:00:00","2025-05-27T14:23:32",{"$nulls":5},"Nei","Nei"," - ",null,null," - "," - "," - ",null,null," - ",null," - "," - "," - ","Nei","Ja",null,null,null," - ","* - IFS Applications","SEO - Serviceordre","NOK",null," - "," - "," - "," - ",null,null,"Nei","Nei","Nei","Nei","Nei","Nei","Nei","Nei","Nei","Ja"," - "," - "," - ",100," - ",{"$nulls":4},"Motor vil ikke starte, tenningslås feiler ved innslag av starter. Startbryter lagt opp som en midlertidig løsning. Tilsetning i diesel. Rengjort motor for sot nytt luftfilter montert.\r\nUtstyr satt i drift igjen etter vellykket testing.",null,null,"Nei","Nei","Nei","KBIOL","2025-05-27T14:18:20","KBIOL","2025-05-27T14:19:23",{"$nulls":13},"Nei",null,null,null,"Nei",null,"KBBFA, KBIOL"]
[1851423,10,"1 månedskontroll","KB - Kristiansund lufth",2935744,"Fullført","+KB996=910.472",1,"117",null,"Olsen, Inge Michael (KBIOL)","KB - Kristiansund lufth","KB200 - Kristiansund Drift","RM - Rullende materiell","3 - Til planlegging (<14d)","UTSTYR","CA - Hovedadministrasjon","AVIRAMP-CONTINENTAL-R-AR187","UTSTYR","CA - Hovedadministrasjon","AVIRAMP-CONTINENTAL-R-AR187","AR 187","02 - Forebyggende vedlikehold"," - ","Månedlig kontroll Utføres i henhold til standard jobb sjekkliste"," - ",null,null," - ","2025-06-16T07:00:00","2025-06-22T17:00:00",1,null,"2025-06-21T07:00:00","2025-06-21T08:00:00","2025-07-05T14:41:53","2025-07-05T14:44:38",{"$nulls":5},"Nei","Nei"," - ",null,null," - "," - "," - ",null,null,"02 - Normal drift","Hindrende"," - "," - "," - ","Nei","Ja",null,null,null," - ","* - IFS Applications","SEO - Serviceordre","NOK",null," - "," - "," - "," - ",null,null,"Nei","Nei","Nei","Nei","Nei","Nei","Nei","Nei","Nei","Ja"," - "," - "," - ",100," - ",{"$nulls":4},"kontroll utført iht sjekkliste",null,null,"Nei","Ja","Nei","*","2025-06-12T03:10:38","IFSAPP","2025-06-12T03:10:38","KBIOL",null,1,"Månedlig kontroll utføres ihht sjekkpunkter under trinn","PmAction",null,"31974-2-","31974","2","50","1",null,null,"Nei",null,null,null,"Nei",{"$f":"DATE(2025,10,29)","v":"2025-10-29"},"KBFBR"]
[1870726,10,"Korrektivt vedlikehold","KB - Kristiansund lufth",2954697,"Fullført","+KB996=910.472",4,"117",null,"Olsen, Inge Michael (KBIOL)","KB - Kristiansund lufth","KB200 - Kristiansund Drift","RM - Rullende materiell"," - ","UTSTYR","CA - Hovedadministrasjon","AVIRAMP-CONTINENTAL-R-AR187","UTSTYR","CA - Hovedadministrasjon","AVIRAMP-CONTINENTAL-R-AR187","AR 187","01 - Korrektivt vedlikehold"," - ","Bøyd låse pinne for skyvedør venstre side sett fra inne i rampen. Døren kan ikke brukes. Mulig rette opp pinnen og sveise den (knekt ved låse splint for retur fjær på låse pinne)"," - ",null,null," - ",{"$nulls":6},"2025-07-09T19:40:52","2025-07-09T19:42:53",{"$nulls":5},"Nei","Nei"," - ",null,null," - "," - "," - ",null,null," - ",null," - "," - "," - ","Nei","Ja",null,null,null," - ","* - IFS Applications","SEO - Serviceordre","NOK",null," - "," - "," - "," - ",null,null,"Nei","Nei","Nei","Nei","Nei","Nei","Nei","Nei","Nei","Ja"," - "," - "," - ",100," - ",{"$nulls":4},"demontert pinne for oppretting og sveising av sprekk langs hull for splint. Montert og funksjonstestet.",null,null,"Nei","Nei","Nei","KBFBR","2025-07-05T15:16:36","KBFBR","2025-07-05T15:20:40",{"$nulls":13},"Nei",null,null,null,"Nei",null,"KBFBR"]
[1872741,10,"1 månedskontroll","KB - Kristiansund lufth",2956681,"Fullført","+KB996=910.472",0.5,"117",null,"Olsen, Inge Michael (KBIOL)","KB - Kristiansund lufth","KB200 - Kristiansund Drift","RM - Rullende materiell","3 - Til planlegging (<14d)","UTSTYR","CA - Hovedadministrasjon","AVIRAMP-CONTINENTAL-R-AR187","UTSTYR","CA - Hovedadministrasjon","AVIRAMP-CONTINENTAL-R-AR187","AR 187","02 - Forebyggende vedlikehold"," - ","Månedlig kontroll Utføres i henhold til standard jobb sjekkliste"," - ",null,null," - ","2025-07-14T07:00:00","2025-07-20T17:00:00",1,null,"2025-07-19T07:00:00","2025-07-19T08:00:00","2025-07-24T15:46:51","2025-07-24T15:53:53",{"$nulls":5},"Nei","Nei"," - ",null,null," - "," - "," - ",null,null,"02 - Normal drift","Hindrende"," - "," - "," - ","Nei","Ja",null,null,null," - ","* - IFS Applications","SEO - Serviceordre","NOK",null," - "," - "," - "," - ",null,null,"Nei","Nei","Nei","Nei","Nei","Nei","Nei","Nei","Nei","Ja"," - "," - "," - ",100," - ",{"$nulls":4},"24.07.2025 15:53 - KBFBR\r\nKontroll utført iht sjekkliste ",null,null,"Nei","Ja","Nei","*","2025-07-10T03:09:42","IFSAPP","2025-07-10T03:09:42","KBIOL",null,1,"Månedlig kontroll utføres ihht sjekkpunkter under trinn","PmAction",null,"31974-2-","31974","2","51","1",null,null,"Nei",null,"Sann",null,"Nei",{"$f":"DATE(2025,10,29)","v":"2025-10-29"},"KBFBR"]
[1893761,10,"1 månedskontroll","KB - Kristiansund lufth",2977293,"Fullført","+KB996=910.472",1,"117",null,"Olsen, Inge Michael (KBIOL)","KB - Kristiansund lufth","KB200 - Kristiansund Drift","RM - Rullende materiell","3 - Til planlegging (<14d)","UTSTYR","CA - Hovedadministrasjon","AVIRAMP-CONTINENTAL-R-AR187","UTSTYR","CA - Hovedadministrasjon","AVIRAMP-CONTINENTAL-R-AR187","AR 187","02 - Forebyggende vedlikehold"," - ","Månedlig kontroll Utføres i henhold til standard jobb sjekkliste"," - ",null,null," - ","2025-08-11T07:00:00","2025-08-17T17:00:00",1,null,"2025-08-16T07:00:00","2025-08-16T08:00:00","2025-08-22T17:27:58","2025-08-22T17:28:05",{"$nulls":5},"Nei","Nei"," - ",null,null," - "," - "," - ",null,null,"02 - Normal drift","Hindrende"," - "," - "," - ","Nei","Ja",null,null,null," - ","* - IFS Applications","SEO - Serviceordre","NOK",null," - "," - "," - "," - ",null,null,"Nei","Nei","Nei","Nei","Nei","Nei","Nei","Nei","Nei","Ja"," - "," - "," - ",100," - ",{"$nulls":4},"kontroll utført iht sjekkliste",null,null,"Nei","Ja","Nei","*","2025-08-07T03:10:17","IFSAPP","2025-08-07T03:10:17","KBIOL",null,1,"Månedlig kontroll utføres ihht sjekkpunkter under trinn","PmAction",null,"31974-2-","31974","2","52","1",null,null,"Nei",null,null,null,"Nei",{"$f":"DATE(2025,10,29)","v":"2025-10-29"},"KBFBR"]
[1914797,10,"1 månedskontroll","KB - Kristiansund lufth",2997960,"Fullført","+KB996=910.472",1,"117;ZCFT-10","KBSOL","Olsen, Inge Michael (KBIOL)","KB - Kristiansund lufth","KB200 - Kristiansund Drift","RM - Rullende materiell","3 - Til planlegging (<14d)","UTSTYR","CA - Hovedadministrasjon","AVIRAMP-CONTINENTAL-R-AR187","UTSTYR","CA - Hovedadministrasjon","AVIRAMP-CONTINENTAL-R-AR187","AR 187","02 - Forebyggende vedlikehold"," - ","Månedlig kontroll Utføres i henhold til standard jobb sjekkliste"," - ",null,null," - ","2025-09-08T07:00:00","2025-09-14T17:00:00",1,null,"2025-09-13T07:00:00","2025-09-13T08:00:00","2025-09-10T12:04:13","2025-09-10T12:04:53",{"$nulls":5},"Nei","Nei"," - ",null,null," - "," - "," - ",null,null,"02 - Normal drift","Hindrende"," - "," - "," - ","Nei","Ja",null,null,null," - ","* - IFS Applications","SEO - Serviceordre","NOK",null," - "," - "," - "," - ",null,null,"Nei","Nei","Nei","Nei","Nei","Nei","Nei","Nei","Nei","Ja"," - "," - "," - ",100," - ",{"$nulls":4},"10.09.2025 12:04 - KBSOL\r\nUtført iht. sjekkliste, ok!",null,null,"Nei","Ja","Nei","*","2025-09-04T03:09:25","IFSAPP","2025-09-04T03:09:25","KBIOL",null,1,"Månedlig kontroll utføres ihht sjekkpunkter under trinn","PmAction",null,"31974-2-","31974","2","53","1",null,null,"Nei",null,"Sann",null,"Nei",{"$f":"DATE(2025,10,29)","v":"2025-10-29"},"KBSOL"]
[1937944,10,"1 månedskontroll","KB - Kristiansund lufth",3020684,"Fullført","+KB996=910.472",1,"117;ZCFT-10","KBSOL","Olsen, Inge Michael (KBIOL)","KB - Kristiansund lufth","KB200 - Kristiansund Drift","RM - Rullende materiell","3 - Til planlegging (<14d)","UTSTYR","CA - Hovedadministrasjon","AVIRAMP-CONTINENTAL-R-AR187","UTSTYR","CA - Hovedadministrasjon","AVIRAMP-CONTINENTAL-R-AR187","AR 187","02 - Forebyggende vedlikehold"," - ","Månedlig kontroll Utføres i henhold til standard jobb sjekkliste"," - ",null,null," - ","2025-10-06T07:00:00","2025-10-12T17:00:00",1,null,"2025-10-11T07:00:00","2025-10-11T08:00:00","2025-10-29T16:07:50","2025-10-29T19:37:12",{"$nulls":5},"Nei","Nei"," - ",null,null," - "," - "," - ",null,null,"02 - Normal drift","Hindrende"," - "," - "," - ","Nei","Ja",null,null,null," - ","* - IFS Applications","SEO - Serviceordre","NOK",null," - "," - "," - "," - ",null,null,"Nei","Nei","Nei","Nei","Nei","Nei","Nei","Nei","Nei","Nei"," - "," - "," - ",100," - ",{"$nulls":4},"29.10.2025 16:07 - KBSOL\r\nAviramp er ikke i drift, men gjennomførte kontroll iht. sjekkliste. OK.",null,null,"Nei","Ja","Nei","*","2025-10-02T03:10:25","IFSAPP","2025-10-02T03:10:25","KBIOL",null,1,"Månedlig kontroll utføres ihht sjekkpunkter under trinn","PmAction",null,"31974-2-","31974","2","54","1",null,null,"Nei",null,"Sann",null,"Nei",{"$f":"DATE(2025,10,29)","v":"2025-10-29"},"KBSOL"]